Publisher Label,Publisher URI,"Supplier ID","Supplier","Invoice No.","Amount £","Purpose","Transaction Number","Payment Date","Organisational Unit","Cost Centre(T)","Internal Category Number"
"Wolverhampton City Council","http://opendatacommunities.org/id/metropolitan-district-council/wolverhampton","707840","Telewest Communications/Virgin Media","035824401/001/1217","86.00","Comms - Telephone Call charges","130200053","27/04/2018","Operation & Maintenance of Existing Network","Traffic Signals","R4505"
"Wolverhampton City Council","http://opendatacommunities.org/id/metropolitan-district-council/wolverhampton","707840","Telewest Communications/Virgin Media","039360602/001/0318","76.06","Comms - Telephone Rental","130210745","11/04/2018","Looked After Children","Head of Service - LAC","R4504"
"Wolverhampton City Council","http://opendatacommunities.org/id/metropolitan-district-council/wolverhampton","707840","Telewest Communications/Virgin Media","039186401/002/0318","58.93","Comms - Telephone Rental","190449077","20/04/2018","ICTS","Strategic ICTS (ICT Service Budget)","R4504"
"Wolverhampton City Council","http://opendatacommunities.org/id/metropolitan-district-council/wolverhampton","707840","Telewest Communications/Virgin Media","037082502/001/0617","6.07","Comms - Telephone Rental","190449045","20/04/2018","ICTS","Strategic ICTS (ICT Service Budget)","R4504"
"Wolverhampton City Council","http://opendatacommunities.org/id/metropolitan-district-council/wolverhampton","707840","Telewest Communications/Virgin Media","037082502/001/0217","6.67","Comms - Telephone Rental","190449049","20/04/2018","ICTS","Strategic ICTS (ICT Service Budget)","R4504"
"Wolverhampton City Council","http://opendatacommunities.org/id/metropolitan-district-council/wolverhampton","707840","Telewest Communications/Virgin Media","045047301/001/0318","5.75","Comms - Telephone Call charges","130210514","04/04/2018","Independent Living Service","Telecare","R4505"
"Wolverhampton City Council","http://opendatacommunities.org/id/metropolitan-district-council/wolverhampton","707840","Telewest Communications/Virgin Media","090460401/501/0817","4.41","Comms - Telephone Call charges","130186348","27/04/2018","Operation & Maintenance of Existing Network","Traffic Signals","R4505"
"Wolverhampton City Council","http://opendatacommunities.org/id/metropolitan-district-council/wolverhampton","707840","Telewest Communications/Virgin Media","090458401/501/0417","6.00","Comms - Telephone Call charges","130169820","27/04/2018","Operation & Maintenance of Existing Network","Traffic Signals","R4505"
"Wolverhampton City Council","http://opendatacommunities.org/id/metropolitan-district-council/wolverhampton","707840","Telewest Communications/Virgin Media","035824401/003/0118","40.00","Comms - Telephone Call charges","130202797","27/04/2018","Operation & Maintenance of Existing Network","Traffic Signals","R4505"
"Wolverhampton City Council","http://opendatacommunities.org/id/metropolitan-district-council/wolverhampton","707840","Telewest Communications/Virgin Media","090460401/501/0917","5.75","Comms - Telephone Call charges","130190074","27/04/2018","Operation & Maintenance of Existing Network","Traffic Signals","R4505"
"Wolverhampton City Council","http://opendatacommunities.org/id/metropolitan-district-council/wolverhampton","707840","Telewest Communications/Virgin Media","037795701/501/1117","5.75","Comms - Telephone Call charges","130195772","27/04/2018","Operation & Maintenance of Existing Network","Traffic Signals","R4505"
"Wolverhampton City Council","http://opendatacommunities.org/id/metropolitan-district-council/wolverhampton","707840","Telewest Communications/Virgin Media","035824401/001/1017","46.00","Comms - Telephone Call charges","130192142","27/04/2018","Operation & Maintenance of Existing Network","Traffic Signals","R4505"
"Wolverhampton City Council","http://opendatacommunities.org/id/metropolitan-district-council/wolverhampton","707840","Telewest Communications/Virgin Media","032820901/503/0218","85.75","Comms - Telephone Call charges","130205724","27/04/2018","Operation & Maintenance of Existing Network","Traffic Signals","R4505"
"Wolverhampton City Council","http://opendatacommunities.org/id/metropolitan-district-council/wolverhampton","707840","Telewest Communications/Virgin Media","090460401/501/0617","6.00","Comms - Telephone Call charges","130179365","27/04/2018","Operation & Maintenance of Existing Network","Traffic Signals","R4505"
"Wolverhampton City Council","http://opendatacommunities.org/id/metropolitan-district-council/wolverhampton","707840","Telewest Communications/Virgin Media","090460501/501/0517","6.00","Comms - Telephone Call charges","130173210","27/04/2018","Operation & Maintenance of Existing Network","Traffic Signals","R4505"
"Wolverhampton City Council","http://opendatacommunities.org/id/metropolitan-district-council/wolverhampton","707840","Telewest Communications/Virgin Media","090460401/501/0717","6.00","Comms - Telephone Call charges","130182594","27/04/2018","Operation & Maintenance of Existing Network","Traffic Signals","R4505"
"Wolverhampton City Council","http://opendatacommunities.org/id/metropolitan-district-council/wolverhampton","707840","Telewest Communications/Virgin Media","039262601/001/1017","7.50","Comms - Telephone Rental","190449108","20/04/2018","ICTS","Strategic ICTS (ICT Service Budget)","R4504"
"Wolverhampton City Council","http://opendatacommunities.org/id/metropolitan-district-council/wolverhampton","707840","Telewest Communications/Virgin Media","039210701/001/0217","27.59","Comms - Telephone Rental","190449103","20/04/2018","ICTS","Strategic ICTS (ICT Service Budget)","R4504"
"Wolverhampton City Council","http://opendatacommunities.org/id/metropolitan-district-council/wolverhampton","707840","Telewest Communications/Virgin Media","039186401/001/0318","21,800.73","Comms - Telephone Rental","190449050","20/04/2018","ICTS","Strategic ICTS (ICT Service Budget)","R4504"
"Wolverhampton City Council","http://opendatacommunities.org/id/metropolitan-district-council/wolverhampton","707840","Telewest Communications/Virgin Media","039210701/001/0917","25.87","Comms - Telephone Rental","190449096","20/04/2018","ICTS","Strategic ICTS (ICT Service Budget)","R4504"
"Wolverhampton City Council","http://opendatacommunities.org/id/metropolitan-district-council/wolverhampton","707840","Telewest Communications/Virgin Media","037082502/001/1117","12.29","Comms - Telephone Rental","190449040","20/04/2018","ICTS","Strategic ICTS (ICT Service Budget)","R4504"
"Wolverhampton City Council","http://opendatacommunities.org/id/metropolitan-district-council/wolverhampton","707840","Telewest Communications/Virgin Media","037082502/001/0917","15.12","Comms - Telephone Rental","190449042","20/04/2018","ICTS","Strategic ICTS (ICT Service Budget)","R4504"
"Wolverhampton City Council","http://opendatacommunities.org/id/metropolitan-district-council/wolverhampton","707840","Telewest Communications/Virgin Media","039210701/001/1217","11.50","Comms - Telephone Rental","190449093","20/04/2018","ICTS","Strategic ICTS (ICT Service Budget)","R4504"
"Wolverhampton City Council","http://opendatacommunities.org/id/metropolitan-district-council/wolverhampton","707840","Telewest Communications/Virgin Media","036484201/001/0917","6.03","Comms - Telephone Rental","190449069","20/04/2018","ICTS","Strategic ICTS (ICT Service Budget)","R4504"
"Wolverhampton City Council","http://opendatacommunities.org/id/metropolitan-district-council/wolverhampton","707840","Telewest Communications/Virgin Media","039186401/003/0318","5.75","Comms - Telephone Rental","190449080","20/04/2018","ICTS","Strategic ICTS (ICT Service Budget)","R4504"
"Wolverhampton City Council","http://opendatacommunities.org/id/metropolitan-district-council/wolverhampton","707840","Telewest Communications/Virgin Media","039186401/003/0217","6.00","Comms - Telephone Rental","190449090","20/04/2018","ICTS","Strategic ICTS (ICT Service Budget)","R4504"
"Wolverhampton City Council","http://opendatacommunities.org/id/metropolitan-district-council/wolverhampton","707840","Telewest Communications/Virgin Media","039210701/001/1117","5.43","Comms - Telephone Rental","190449094","20/04/2018","ICTS","Strategic ICTS (ICT Service Budget)","R4504"
"Wolverhampton City Council","http://opendatacommunities.org/id/metropolitan-district-council/wolverhampton","707840","Telewest Communications/Virgin Media","032820901/503/0417","6.00","Comms - Telephone Rental","190449113","20/04/2018","ICTS","Strategic ICTS (ICT Service Budget)","R4504"
"Wolverhampton City Council","http://opendatacommunities.org/id/metropolitan-district-council/wolverhampton","707840","Telewest Communications/Virgin Media","035910901/003/0617","6.00","Comms - Telephone Rental","190449060","20/04/2018","ICTS","Strategic ICTS (ICT Service Budget)","R4504"
"Wolverhampton City Council","http://opendatacommunities.org/id/metropolitan-district-council/wolverhampton","707840","Telewest Communications/Virgin Media","035910901/003/0118","5.75","Comms - Telephone Rental","190449053","20/04/2018","ICTS","Strategic ICTS (ICT Service Budget)","R4504"
"Wolverhampton City Council","http://opendatacommunities.org/id/metropolitan-district-council/wolverhampton","707840","Telewest Communications/Virgin Media","035910901/003/1017","5.75","Comms - Telephone Rental","190449056","20/04/2018","ICTS","Strategic ICTS (ICT Service Budget)","R4504"
"Wolverhampton City Council","http://opendatacommunities.org/id/metropolitan-district-council/wolverhampton","707840","Telewest Communications/Virgin Media","036484201/001/0118","5.81","Comms - Telephone Rental","190449065","20/04/2018","ICTS","Strategic ICTS (ICT Service Budget)","R4504"
"Wolverhampton City Council","http://opendatacommunities.org/id/metropolitan-district-council/wolverhampton","707840","Telewest Communications/Virgin Media","036484201/001/1117","3.30","Comms - Telephone Rental","190449067","20/04/2018","ICTS","Strategic ICTS (ICT Service Budget)","R4504"
"Wolverhampton City Council","http://opendatacommunities.org/id/metropolitan-district-council/wolverhampton","707840","Telewest Communications/Virgin Media","090460401/501/1217","45.75","Comms - Telephone Call charges","130200852","27/04/2018","Operation & Maintenance of Existing Network","Traffic Signals","R4505"
"Wolverhampton City Council","http://opendatacommunities.org/id/metropolitan-district-council/wolverhampton","707840","Telewest Communications/Virgin Media","090458401/501/0118","45.75","Comms - Telephone Call charges","130204234","27/04/2018","Operation & Maintenance of Existing Network","Traffic Signals","R4505"
"Wolverhampton City Council","http://opendatacommunities.org/id/metropolitan-district-council/wolverhampton","707840","Telewest Communications/Virgin Media","090460401/501/0218","45.75","Comms - Telephone Call charges","130208712","27/04/2018","Operation & Maintenance of Existing Network","Traffic Signals","R4505"
"Wolverhampton City Council","http://opendatacommunities.org/id/metropolitan-district-council/wolverhampton","707840","Telewest Communications/Virgin Media","035824401/001/0218","86.01","Comms - Telephone Call charges","130206538","27/04/2018","Operation & Maintenance of Existing Network","Traffic Signals","R4505"
"Wolverhampton City Council","http://opendatacommunities.org/id/metropolitan-district-council/wolverhampton","707840","Telewest Communications/Virgin Media","036484201/001/0417","6.03","Comms - Telephone Rental","190449074","20/04/2018","ICTS","Strategic ICTS (ICT Service Budget)","R4504"
"Wolverhampton City Council","http://opendatacommunities.org/id/metropolitan-district-council/wolverhampton","707840","Telewest Communications/Virgin Media","039262601/001/0817","42.50","Comms - Telephone Rental","190449110","20/04/2018","ICTS","Strategic ICTS (ICT Service Budget)","R4504"
"Wolverhampton City Council","http://opendatacommunities.org/id/metropolitan-district-council/wolverhampton","707840","Telewest Communications/Virgin Media","037082502/001/0717","6.45","Comms - Telephone Rental","190449044","20/04/2018","ICTS","Strategic ICTS (ICT Service Budget)","R4504"
"Wolverhampton City Council","http://opendatacommunities.org/id/metropolitan-district-council/wolverhampton","707840","Telewest Communications/Virgin Media","044898101/001/0318","5.75","Comms - Telephone Call charges","130210513","04/04/2018","Independent Living Service","Telecare","R4505"
"Wolverhampton City Council","http://opendatacommunities.org/id/metropolitan-district-council/wolverhampton","707840","Telewest Communications/Virgin Media","090458401/501/0717","6.00","Comms - Telephone Call charges","130182259","27/04/2018","Operation & Maintenance of Existing Network","Traffic Signals","R4505"
"Wolverhampton City Council","http://opendatacommunities.org/id/metropolitan-district-council/wolverhampton","707840","Telewest Communications/Virgin Media","035824401/003/1217","40.00","Comms - Telephone Call charges","130200054","27/04/2018","Operation & Maintenance of Existing Network","Traffic Signals","R4505"
"Wolverhampton City Council","http://opendatacommunities.org/id/metropolitan-district-council/wolverhampton","707840","Telewest Communications/Virgin Media","090460501/501/0617","6.00","Comms - Telephone Call charges","130177674","27/04/2018","Operation & Maintenance of Existing Network","Traffic Signals","R4505"
"Wolverhampton City Council","http://opendatacommunities.org/id/metropolitan-district-council/wolverhampton","707840","Telewest Communications/Virgin Media","090460501/501/0417","6.00","Comms - Telephone Call charges","130172360","27/04/2018","Operation & Maintenance of Existing Network","Traffic Signals","R4505"
"Wolverhampton City Council","http://opendatacommunities.org/id/metropolitan-district-council/wolverhampton","707840","Telewest Communications/Virgin Media","037795701/501/0817","4.49","Comms - Telephone Call charges","130185050","27/04/2018","Operation & Maintenance of Existing Network","Traffic Signals","R4505"
"Wolverhampton City Council","http://opendatacommunities.org/id/metropolitan-district-council/wolverhampton","707840","Telewest Communications/Virgin Media","037795701/501/0917","5.75","Comms - Telephone Call charges","130188850","27/04/2018","Operation & Maintenance of Existing Network","Traffic Signals","R4505"
"Wolverhampton City Council","http://opendatacommunities.org/id/metropolitan-district-council/wolverhampton","707840","Telewest Communications/Virgin Media","035824401/001/0917","46.00","Comms - Telephone Call charges","130188677","27/04/2018","Operation & Maintenance of Existing Network","Traffic Signals","R4505"
"Wolverhampton City Council","http://opendatacommunities.org/id/metropolitan-district-council/wolverhampton","707840","Telewest Communications/Virgin Media","035824401/001/0717","48.00","Comms - Telephone Call charges","130180741","27/04/2018","Operation & Maintenance of Existing Network","Traffic Signals","R4505"
"Wolverhampton City Council","http://opendatacommunities.org/id/metropolitan-district-council/wolverhampton","707840","Telewest Communications/Virgin Media","032820901/503/11 17","5.75","Comms - Telephone Call charges","130195229","27/04/2018","Operation & Maintenance of Existing Network","Traffic Signals","R4505"
"Wolverhampton City Council","http://opendatacommunities.org/id/metropolitan-district-council/wolverhampton","707840","Telewest Communications/Virgin Media","032820901/503/0118","5.75","Comms - Telephone Call charges","130201621","27/04/2018","Operation & Maintenance of Existing Network","Traffic Signals","R4505"
"Wolverhampton City Council","http://opendatacommunities.org/id/metropolitan-district-council/wolverhampton","707840","Telewest Communications/Virgin Media","039262601/001/0917","7.50","Comms - Telephone Rental","190449109","20/04/2018","ICTS","Strategic ICTS (ICT Service Budget)","R4504"
"Wolverhampton City Council","http://opendatacommunities.org/id/metropolitan-district-council/wolverhampton","707840","Telewest Communications/Virgin Media","039210701/001/0317","28.73","Comms - Telephone Rental","190449102","20/04/2018","ICTS","Strategic ICTS (ICT Service Budget)","R4504"
"Wolverhampton City Council","http://opendatacommunities.org/id/metropolitan-district-council/wolverhampton","707840","Telewest Communications/Virgin Media","036484201/001/0517","6.07","Comms - Telephone Rental","190449073","20/04/2018","ICTS","Strategic ICTS (ICT Service Budget)","R4504"
"Wolverhampton City Council","http://opendatacommunities.org/id/metropolitan-district-council/wolverhampton","707840","Telewest Communications/Virgin Media","036484201/001/0817","6.03","Comms - Telephone Rental","190449070","20/04/2018","ICTS","Strategic ICTS (ICT Service Budget)","R4504"
"Wolverhampton City Council","http://opendatacommunities.org/id/metropolitan-district-council/wolverhampton","707840","Telewest Communications/Virgin Media","039210701/001/0417","27.79","Comms - Telephone Rental","190449101","20/04/2018","ICTS","Strategic ICTS (ICT Service Budget)","R4504"
"Wolverhampton City Council","http://opendatacommunities.org/id/metropolitan-district-council/wolverhampton","707840","Telewest Communications/Virgin Media","039210701/001/0218","11.50","Comms - Telephone Rental","190449091","20/04/2018","ICTS","Strategic ICTS (ICT Service Budget)","R4504"
"Wolverhampton City Council","http://opendatacommunities.org/id/metropolitan-district-council/wolverhampton","707840","Telewest Communications/Virgin Media","037082502/001/0118","20.55","Comms - Telephone Rental","190449038","20/04/2018","ICTS","Strategic ICTS (ICT Service Budget)","R4504"
"Wolverhampton City Council","http://opendatacommunities.org/id/metropolitan-district-council/wolverhampton","707840","Telewest Communications/Virgin Media","037082502/001/1017","12.30","Comms - Telephone Rental","190449041","20/04/2018","ICTS","Strategic ICTS (ICT Service Budget)","R4504"
"Wolverhampton City Council","http://opendatacommunities.org/id/metropolitan-district-council/wolverhampton","707840","Telewest Communications/Virgin Media","035910901/003/0517","6.01","Comms - Telephone Rental","190449061","20/04/2018","ICTS","Strategic ICTS (ICT Service Budget)","R4504"
"Wolverhampton City Council","http://opendatacommunities.org/id/metropolitan-district-council/wolverhampton","707840","Telewest Communications/Virgin Media","037082502/001/0517","6.00","Comms - Telephone Rental","190449046","20/04/2018","ICTS","Strategic ICTS (ICT Service Budget)","R4504"
"Wolverhampton City Council","http://opendatacommunities.org/id/metropolitan-district-council/wolverhampton","707840","Telewest Communications/Virgin Media","039186401/003/0817","4.50","Comms - Telephone Rental","190449086","20/04/2018","ICTS","Strategic ICTS (ICT Service Budget)","R4504"
"Wolverhampton City Council","http://opendatacommunities.org/id/metropolitan-district-council/wolverhampton","707840","Telewest Communications/Virgin Media","039186401/003/0218","5.75","Comms - Telephone Rental","190449081","20/04/2018","ICTS","Strategic ICTS (ICT Service Budget)","R4504"
"Wolverhampton City Council","http://opendatacommunities.org/id/metropolitan-district-council/wolverhampton","707840","Telewest Communications/Virgin Media","039186401/003/1117","5.75","Comms - Telephone Rental","190449084","20/04/2018","ICTS","Strategic ICTS (ICT Service Budget)","R4504"
"Wolverhampton City Council","http://opendatacommunities.org/id/metropolitan-district-council/wolverhampton","707840","Telewest Communications/Virgin Media","039186401/003/0717","6.00","Comms - Telephone Rental","190449087","20/04/2018","ICTS","Strategic ICTS (ICT Service Budget)","R4504"
"Wolverhampton City Council","http://opendatacommunities.org/id/metropolitan-district-council/wolverhampton","707840","Telewest Communications/Virgin Media","039186401/002/0118","123.43","Comms - Telephone Rental","190449079","20/04/2018","ICTS","Strategic ICTS (ICT Service Budget)","R4504"
"Wolverhampton City Council","http://opendatacommunities.org/id/metropolitan-district-council/wolverhampton","707840","Telewest Communications/Virgin Media","032820901/503/1117","5.75","Comms - Telephone Rental","190449112","20/04/2018","ICTS","Strategic ICTS (ICT Service Budget)","R4504"
"Wolverhampton City Council","http://opendatacommunities.org/id/metropolitan-district-council/wolverhampton","707840","Telewest Communications/Virgin Media","032820901/503/0317","6.00","Comms - Telephone Rental","190449114","20/04/2018","ICTS","Strategic ICTS (ICT Service Budget)","R4504"
"Wolverhampton City Council","http://opendatacommunities.org/id/metropolitan-district-council/wolverhampton","707840","Telewest Communications/Virgin Media","035910901/003/0917","5.75","Comms - Telephone Rental","190449057","20/04/2018","ICTS","Strategic ICTS (ICT Service Budget)","R4504"
"Wolverhampton City Council","http://opendatacommunities.org/id/metropolitan-district-council/wolverhampton","707840","Telewest Communications/Virgin Media","035910901/003/0417","6.00","Comms - Telephone Rental","190449062","20/04/2018","ICTS","Strategic ICTS (ICT Service Budget)","R4504"
"Wolverhampton City Council","http://opendatacommunities.org/id/metropolitan-district-council/wolverhampton","707840","Telewest Communications/Virgin Media","032820901/503/1217","45.75","Comms - Telephone Call charges","130199238","27/04/2018","Operation & Maintenance of Existing Network","Traffic Signals","R4505"
"Wolverhampton City Council","http://opendatacommunities.org/id/metropolitan-district-council/wolverhampton","707840","Telewest Communications/Virgin Media","915503 - 097","121.16","Comms - Telephone Call charges","130208230","27/04/2018","Operation & Maintenance of Existing Network","Traffic Signals","R4505"
"Wolverhampton City Council","http://opendatacommunities.org/id/metropolitan-district-council/wolverhampton","707840","Telewest Communications/Virgin Media","090460501/501/01 18","45.75","Comms - Telephone Call charges","130204058","27/04/2018","Operation & Maintenance of Existing Network","Traffic Signals","R4505"
"Wolverhampton City Council","http://opendatacommunities.org/id/metropolitan-district-council/wolverhampton","707840","Telewest Communications/Virgin Media","090458401/501/0218","45.75","Comms - Telephone Call charges","130207700","27/04/2018","Operation & Maintenance of Existing Network","Traffic Signals","R4505"
"Wolverhampton City Council","http://opendatacommunities.org/id/metropolitan-district-council/wolverhampton","707840","Telewest Communications/Virgin Media","090460501/501/0318","45.75","Comms - Telephone Call charges","130211286","27/04/2018","Operation & Maintenance of Existing Network","Traffic Signals","R4505"
"Wolverhampton City Council","http://opendatacommunities.org/id/metropolitan-district-council/wolverhampton","707840","Telewest Communications/Virgin Media","037082502/001/0317","6.92","Comms - Telephone Rental","190449048","20/04/2018","ICTS","Strategic ICTS (ICT Service Budget)","R4504"
"Wolverhampton City Council","http://opendatacommunities.org/id/metropolitan-district-council/wolverhampton","707840","Telewest Communications/Virgin Media","036484201/001/0617","6.05","Comms - Telephone Rental","190449072","20/04/2018","ICTS","Strategic ICTS (ICT Service Budget)","R4504"
"Wolverhampton City Council","http://opendatacommunities.org/id/metropolitan-district-council/wolverhampton","707840","Telewest Communications/Virgin Media","037082502/001/0817","49.92","Comms - Telephone Rental","190449043","20/04/2018","ICTS","Strategic ICTS (ICT Service Budget)","R4504"
"Wolverhampton City Council","http://opendatacommunities.org/id/metropolitan-district-council/wolverhampton","707840","Telewest Communications/Virgin Media","046213601/001/0318","7.50","Comms - Telephone Call charges","130210515","04/04/2018","Independent Living Service","Telecare","R4505"
"Wolverhampton City Council","http://opendatacommunities.org/id/metropolitan-district-council/wolverhampton","707840","Telewest Communications/Virgin Media","090458401/501/1117","5.75","Comms - Telephone Call charges","130198938","27/04/2018","Operation & Maintenance of Existing Network","Traffic Signals","R4505"
"Wolverhampton City Council","http://opendatacommunities.org/id/metropolitan-district-council/wolverhampton","707840","Telewest Communications/Virgin Media","090460401/501/1017","5.75","Comms - Telephone Call charges","130193730","27/04/2018","Operation & Maintenance of Existing Network","Traffic Signals","R4505"
"Wolverhampton City Council","http://opendatacommunities.org/id/metropolitan-district-council/wolverhampton","707840","Telewest Communications/Virgin Media","037795701/501/1017","5.75","Comms - Telephone Call charges","130192144","27/04/2018","Operation & Maintenance of Existing Network","Traffic Signals","R4505"
"Wolverhampton City Council","http://opendatacommunities.org/id/metropolitan-district-council/wolverhampton","707840","Telewest Communications/Virgin Media","037795701/501/0517","6.00","Comms - Telephone Call charges","130171861","27/04/2018","Operation & Maintenance of Existing Network","Traffic Signals","R4505"
"Wolverhampton City Council","http://opendatacommunities.org/id/metropolitan-district-council/wolverhampton","707840","Telewest Communications/Virgin Media","037795701/501/0617","6.00","Comms - Telephone Call charges","130176495","27/04/2018","Operation & Maintenance of Existing Network","Traffic Signals","R4505"
"Wolverhampton City Council","http://opendatacommunities.org/id/metropolitan-district-council/wolverhampton","707840","Telewest Communications/Virgin Media","037795701/501/0717","6.00","Comms - Telephone Call charges","130180922","27/04/2018","Operation & Maintenance of Existing Network","Traffic Signals","R4505"
"Wolverhampton City Council","http://opendatacommunities.org/id/metropolitan-district-council/wolverhampton","707840","Telewest Communications/Virgin Media","035824401/001/1117","46.20","Comms - Telephone Call charges","130195929","27/04/2018","Operation & Maintenance of Existing Network","Traffic Signals","R4505"
"Wolverhampton City Council","http://opendatacommunities.org/id/metropolitan-district-council/wolverhampton","707840","Telewest Communications/Virgin Media","035824401/001/0617","48.00","Comms - Telephone Call charges","130176494","27/04/2018","Operation & Maintenance of Existing Network","Traffic Signals","R4505"
"Wolverhampton City Council","http://opendatacommunities.org/id/metropolitan-district-council/wolverhampton","707840","Telewest Communications/Virgin Media","032820901/503/0917","5.75","Comms - Telephone Call charges","130187898","27/04/2018","Operation & Maintenance of Existing Network","Traffic Signals","R4505"
"Wolverhampton City Council","http://opendatacommunities.org/id/metropolitan-district-council/wolverhampton","707840","Telewest Communications/Virgin Media","032820901/503/0817","4.56","Comms - Telephone Call charges","130184693","27/04/2018","Operation & Maintenance of Existing Network","Traffic Signals","R4505"
"Wolverhampton City Council","http://opendatacommunities.org/id/metropolitan-district-council/wolverhampton","707840","Telewest Communications/Virgin Media","037082502/001/0417","6.11","Comms - Telephone Rental","190449047","20/04/2018","ICTS","Strategic ICTS (ICT Service Budget)","R4504"
"Wolverhampton City Council","http://opendatacommunities.org/id/metropolitan-district-council/wolverhampton","707840","Telewest Communications/Virgin Media","039262601/001/0118","7.50","Comms - Telephone Rental","190449105","20/04/2018","ICTS","Strategic ICTS (ICT Service Budget)","R4504"
"Wolverhampton City Council","http://opendatacommunities.org/id/metropolitan-district-council/wolverhampton","707840","Telewest Communications/Virgin Media","036484201/001/0717","6.03","Comms - Telephone Rental","190449071","20/04/2018","ICTS","Strategic ICTS (ICT Service Budget)","R4504"
"Wolverhampton City Council","http://opendatacommunities.org/id/metropolitan-district-council/wolverhampton","707840","Telewest Communications/Virgin Media","037082502/001/0318","21.72","Comms - Telephone Rental","190449036","20/04/2018","ICTS","Strategic ICTS (ICT Service Budget)","R4504"
"Wolverhampton City Council","http://opendatacommunities.org/id/metropolitan-district-council/wolverhampton","707840","Telewest Communications/Virgin Media","039210701/001/0717","27.90","Comms - Telephone Rental","190449098","20/04/2018","ICTS","Strategic ICTS (ICT Service Budget)","R4504"
"Wolverhampton City Council","http://opendatacommunities.org/id/metropolitan-district-council/wolverhampton","707840","Telewest Communications/Virgin Media","039210701/001/0617","26.93","Comms - Telephone Rental","190449099","20/04/2018","ICTS","Strategic ICTS (ICT Service Budget)","R4504"
"Wolverhampton City Council","http://opendatacommunities.org/id/metropolitan-district-council/wolverhampton","707840","Telewest Communications/Virgin Media","039210701/001/0817","19.56","Comms - Telephone Rental","190449097","20/04/2018","ICTS","Strategic ICTS (ICT Service Budget)","R4504"
"Wolverhampton City Council","http://opendatacommunities.org/id/metropolitan-district-council/wolverhampton","707840","Telewest Communications/Virgin Media","039210701/001/0118","11.50","Comms - Telephone Rental","190449092","20/04/2018","ICTS","Strategic ICTS (ICT Service Budget)","R4504"
"Wolverhampton City Council","http://opendatacommunities.org/id/metropolitan-district-council/wolverhampton","707840","Telewest Communications/Virgin Media","036484201/001/1017","6.02","Comms - Telephone Rental","190449068","20/04/2018","ICTS","Strategic ICTS (ICT Service Budget)","R4504"
"Wolverhampton City Council","http://opendatacommunities.org/id/metropolitan-district-council/wolverhampton","707840","Telewest Communications/Virgin Media","039186401/003/0917","5.75","Comms - Telephone Rental","190449085","20/04/2018","ICTS","Strategic ICTS (ICT Service Budget)","R4504"
"Wolverhampton City Council","http://opendatacommunities.org/id/metropolitan-district-council/wolverhampton","707840","Telewest Communications/Virgin Media","039186401/003/0617","6.00","Comms - Telephone Rental","190449088","20/04/2018","ICTS","Strategic ICTS (ICT Service Budget)","R4504"
"Wolverhampton City Council","http://opendatacommunities.org/id/metropolitan-district-council/wolverhampton","707840","Telewest Communications/Virgin Media","039186401/003/0118","5.75","Comms - Telephone Rental","190449082","20/04/2018","ICTS","Strategic ICTS (ICT Service Budget)","R4504"
"Wolverhampton City Council","http://opendatacommunities.org/id/metropolitan-district-council/wolverhampton","707840","Telewest Communications/Virgin Media","032820901/503/0318","5.75","Comms - Telephone Rental","190449111","20/04/2018","ICTS","Strategic ICTS (ICT Service Budget)","R4504"
"Wolverhampton City Council","http://opendatacommunities.org/id/metropolitan-district-council/wolverhampton","707840","Telewest Communications/Virgin Media","032820901/503/0217","6.00","Comms - Telephone Rental","190449115","20/04/2018","ICTS","Strategic ICTS (ICT Service Budget)","R4504"
"Wolverhampton City Council","http://opendatacommunities.org/id/metropolitan-district-council/wolverhampton","707840","Telewest Communications/Virgin Media","036800401/017/0318","960.00","Comms - Telephone Rental","190449116","20/04/2018","ICTS","Strategic ICTS (ICT Service Budget)","R4504"
"Wolverhampton City Council","http://opendatacommunities.org/id/metropolitan-district-council/wolverhampton","707840","Telewest Communications/Virgin Media","035910901/003/0717","6.00","Comms - Telephone Rental","190449059","20/04/2018","ICTS","Strategic ICTS (ICT Service Budget)","R4504"
"Wolverhampton City Council","http://opendatacommunities.org/id/metropolitan-district-council/wolverhampton","707840","Telewest Communications/Virgin Media","035910901/003/0817","4.57","Comms - Telephone Rental","190449058","20/04/2018","ICTS","Strategic ICTS (ICT Service Budget)","R4504"
"Wolverhampton City Council","http://opendatacommunities.org/id/metropolitan-district-council/wolverhampton","707840","Telewest Communications/Virgin Media","035910901/003/0317","6.00","Comms - Telephone Rental","190449063","20/04/2018","ICTS","Strategic ICTS (ICT Service Budget)","R4504"
"Wolverhampton City Council","http://opendatacommunities.org/id/metropolitan-district-council/wolverhampton","707840","Telewest Communications/Virgin Media","035910901/003/0318","5.75","Comms - Telephone Rental","190449051","20/04/2018","ICTS","Strategic ICTS (ICT Service Budget)","R4504"
"Wolverhampton City Council","http://opendatacommunities.org/id/metropolitan-district-council/wolverhampton","707840","Telewest Communications/Virgin Media","035824401/001/0817","36.00","Comms - Telephone Call charges","130185048","27/04/2018","Operation & Maintenance of Existing Network","Traffic Signals","R4505"
"Wolverhampton City Council","http://opendatacommunities.org/id/metropolitan-district-council/wolverhampton","707840","Telewest Communications/Virgin Media","046213201/001/0318","47.50","Comms - Telephone Call charges","130211665","11/04/2018","Independent Living Service","Telecare","R4505"
"Wolverhampton City Council","http://opendatacommunities.org/id/metropolitan-district-council/wolverhampton","707840","Telewest Communications/Virgin Media","035824401/001/0118","86.00","Comms - Telephone Call charges","130202796","27/04/2018","Operation & Maintenance of Existing Network","Traffic Signals","R4505"
"Wolverhampton City Council","http://opendatacommunities.org/id/metropolitan-district-council/wolverhampton","707840","Telewest Communications/Virgin Media","037795701/501/0118","45.75","Comms - Telephone Call charges","130202798","27/04/2018","Operation & Maintenance of Existing Network","Traffic Signals","R4505"
"Wolverhampton City Council","http://opendatacommunities.org/id/metropolitan-district-council/wolverhampton","707840","Telewest Communications/Virgin Media","037795701/501/0218","45.75","Comms - Telephone Call charges","130207699","27/04/2018","Operation & Maintenance of Existing Network","Traffic Signals","R4505"
"Wolverhampton City Council","http://opendatacommunities.org/id/metropolitan-district-council/wolverhampton","707840","Telewest Communications/Virgin Media","037795701/501/0318","45.75","Comms - Telephone Call charges","130210070","27/04/2018","Operation & Maintenance of Existing Network","Traffic Signals","R4505"
"Wolverhampton City Council","http://opendatacommunities.org/id/metropolitan-district-council/wolverhampton","707841","Telford & Wrekin Council","4378252","522.00","Client Transport - SEN","130214303","27/04/2018","School Planning & Resources","Special - Transport","R3043"
"Wolverhampton City Council","http://opendatacommunities.org/id/metropolitan-district-council/wolverhampton","707841","Telford & Wrekin Council","4373362","1,410.00","Client Transport - SEN","130210934","04/04/2018","School Planning & Resources","Special - Transport","R3043"
"Wolverhampton City Council","http://opendatacommunities.org/id/metropolitan-district-council/wolverhampton","707855","Terberg Matec UK Limited","96355558","157.91","Equipment - Purchase","190449728","20/04/2018","Fleet Services","Fleet Management","R4000"
"Wolverhampton City Council","http://opendatacommunities.org/id/metropolitan-district-council/wolverhampton","707855","Terberg Matec UK Limited","96356285","15.25","Equipment - Purchase","190451798","27/04/2018","Fleet Services","Fleet Management","R4000"
"Wolverhampton City Council","http://opendatacommunities.org/id/metropolitan-district-council/wolverhampton","707855","Terberg Matec UK Limited","96356285","53.11","Equipment - Purchase","190451798","27/04/2018","Fleet Services","Fleet Management","R4000"
"Wolverhampton City Council","http://opendatacommunities.org/id/metropolitan-district-council/wolverhampton","707855","Terberg Matec UK Limited","96356285","14.15","Equipment - Purchase","190451798","27/04/2018","Fleet Services","Fleet Management","R4000"
"Wolverhampton City Council","http://opendatacommunities.org/id/metropolitan-district-council/wolverhampton","707855","Terberg Matec UK Limited","96356285","3.28","Equipment - Purchase","190451798","27/04/2018","Fleet Services","Fleet Management","R4000"
"Wolverhampton City Council","http://opendatacommunities.org/id/metropolitan-district-council/wolverhampton","707855","Terberg Matec UK Limited","96356285","9.66","Equipment - Purchase","190451798","27/04/2018","Fleet Services","Fleet Management","R4000"
"Wolverhampton City Council","http://opendatacommunities.org/id/metropolitan-district-council/wolverhampton","707855","Terberg Matec UK Limited","96356285","31.34","Equipment - Purchase","190451798","27/04/2018","Fleet Services","Fleet Management","R4000"
"Wolverhampton City Council","http://opendatacommunities.org/id/metropolitan-district-council/wolverhampton","707855","Terberg Matec UK Limited","96356285","21.24","Equipment - Purchase","190451798","27/04/2018","Fleet Services","Fleet Management","R4000"
"Wolverhampton City Council","http://opendatacommunities.org/id/metropolitan-district-council/wolverhampton","707855","Terberg Matec UK Limited","96356285","144.83","Equipment - Purchase","190451798","27/04/2018","Fleet Services","Fleet Management","R4000"
"Wolverhampton City Council","http://opendatacommunities.org/id/metropolitan-district-council/wolverhampton","707855","Terberg Matec UK Limited","96355704","3,703.39","Services - Professional Fees","190448787","18/04/2018","Fleet Services","Fleet Management","R4400"
"Wolverhampton City Council","http://opendatacommunities.org/id/metropolitan-district-council/wolverhampton","707855","Terberg Matec UK Limited","96355686","157.91","Equipment - Purchase","190449729","20/04/2018","Fleet Services","Fleet Management","R4000"
"Wolverhampton City Council","http://opendatacommunities.org/id/metropolitan-district-council/wolverhampton","707855","Terberg Matec UK Limited","96355306","201.64","Services - Professional Fees","190448785","18/04/2018","Fleet Services","Fleet Management","R4400"
"Wolverhampton City Council","http://opendatacommunities.org/id/metropolitan-district-council/wolverhampton","707855","Terberg Matec UK Limited","96355687","0.36","Equipment - Purchase","190449730","20/04/2018","Fleet Services","Fleet Management","R4000"
"Wolverhampton City Council","http://opendatacommunities.org/id/metropolitan-district-council/wolverhampton","707855","Terberg Matec UK Limited","96355687","0.74","Equipment - Purchase","190449730","20/04/2018","Fleet Services","Fleet Management","R4000"
"Wolverhampton City Council","http://opendatacommunities.org/id/metropolitan-district-council/wolverhampton","707855","Terberg Matec UK Limited","96355687","0.26","Equipment - Purchase","190449730","20/04/2018","Fleet Services","Fleet Management","R4000"
"Wolverhampton City Council","http://opendatacommunities.org/id/metropolitan-district-council/wolverhampton","707855","Terberg Matec UK Limited","96355687","2.96","Equipment - Purchase","190449730","20/04/2018","Fleet Services","Fleet Management","R4000"
"Wolverhampton City Council","http://opendatacommunities.org/id/metropolitan-district-council/wolverhampton","707855","Terberg Matec UK Limited","96355687","213.20","Equipment - Purchase","190449730","20/04/2018","Fleet Services","Fleet Management","R4000"
"Wolverhampton City Council","http://opendatacommunities.org/id/metropolitan-district-council/wolverhampton","707855","Terberg Matec UK Limited","96355687","84.96","Equipment - Purchase","190449730","20/04/2018","Fleet Services","Fleet Management","R4000"
"Wolverhampton City Council","http://opendatacommunities.org/id/metropolitan-district-council/wolverhampton","707855","Terberg Matec UK Limited","96355351","760.20","Equipment - Purchase","190448786","18/04/2018","Fleet Services","Fleet Management","R4000"
"Wolverhampton City Council","http://opendatacommunities.org/id/metropolitan-district-council/wolverhampton","707855","Terberg Matec UK Limited","96355471","68.61","Equipment - Purchase","190451797","27/04/2018","Fleet Services","Fleet Management","R4000"
"Wolverhampton City Council","http://opendatacommunities.org/id/metropolitan-district-council/wolverhampton","707855","Terberg Matec UK Limited","96355471","48.74","Equipment - Purchase","190451797","27/04/2018","Fleet Services","Fleet Management","R4000"
"Wolverhampton City Council","http://opendatacommunities.org/id/metropolitan-district-council/wolverhampton","707855","Terberg Matec UK Limited","96355471","132.09","Equipment - Purchase","190451797","27/04/2018","Fleet Services","Fleet Management","R4000"
"Wolverhampton City Council","http://opendatacommunities.org/id/metropolitan-district-council/wolverhampton","707855","Terberg Matec UK Limited","96355155","985.29","Services - Professional Fees","190448784","18/04/2018","Fleet Services","Fleet Management","R4400"
"Wolverhampton City Council","http://opendatacommunities.org/id/metropolitan-district-council/wolverhampton","707858","Tettenhall College","NEF Summer 2018 INST 1","17,901.00","TPP - Private Nursery Education Funding","190451850","27/04/2018","Early Years","Early Years Universal Entitlement for 3 and 4 Year Olds","R5035"
"Wolverhampton City Council","http://opendatacommunities.org/id/metropolitan-district-council/wolverhampton","707891","The Bigword Interpreting Serv. Limited","INV20184471","32.00","Services - Translation fees","130212660","13/04/2018","Youth Offending","Youth Offending Team","R4406"
"Wolverhampton City Council","http://opendatacommunities.org/id/metropolitan-district-council/wolverhampton","707891","The Bigword Interpreting Serv. Limited","INV20201865","41.00","Services - Professional Fees","130209061","04/04/2018","Specialist Support","Vulnerable Young Persons Team","R4400"
"Wolverhampton City Council","http://opendatacommunities.org/id/metropolitan-district-council/wolverhampton","707891","The Bigword Interpreting Serv. Limited","INV20202400","82.00","Services - Translation fees","130210330","11/04/2018","Child Protection","Childrens with Disabilities Team","R4406"
"Wolverhampton City Council","http://opendatacommunities.org/id/metropolitan-district-council/wolverhampton","707891","The Bigword Interpreting Serv. Limited","80034100","3,669.06","Services - Translation fees","130210329","04/04/2018","Central Corporate Budgets","Miscellaneous Corporate Costs","R4406"
"Wolverhampton City Council","http://opendatacommunities.org/id/metropolitan-district-council/wolverhampton","707891","The Bigword Interpreting Serv. Limited","80011075","1,035.51","Services - Translation fees","130212107","25/04/2018","Head of Commissioning","Head of Strategic Commissioning","R4406"
"Wolverhampton City Council","http://opendatacommunities.org/id/metropolitan-district-council/wolverhampton","707891","The Bigword Interpreting Serv. Limited","INV20203567","49.00","Services - Translation fees","130211846","25/04/2018","Child Protection","Childrens with Disabilities Team","R4406"
"Wolverhampton City Council","http://opendatacommunities.org/id/metropolitan-district-council/wolverhampton","707891","The Bigword Interpreting Serv. Limited","INV20197349","64.00","Services - Translation fees","130210935","04/04/2018","Child Protection","CIN/CP Social Work Unit - Area 6","R4406"
"Wolverhampton City Council","http://opendatacommunities.org/id/metropolitan-district-council/wolverhampton","707891","The Bigword Interpreting Serv. Limited","INV20201866","41.00","Services - Professional Fees","130209062","04/04/2018","Governance Services","Democratic Support","R4400"
"Wolverhampton City Council","http://opendatacommunities.org/id/metropolitan-district-council/wolverhampton","707891","The Bigword Interpreting Serv. Limited","INV20201867","60.00","Services - Translation fees","130209063","04/04/2018","Child Protection","MASH","R4406"
"Wolverhampton City Council","http://opendatacommunities.org/id/metropolitan-district-council/wolverhampton","707891","The Bigword Interpreting Serv. Limited","INV592872","42.49","Services - Professional Fees","130212108","25/04/2018","Customer Services","City Direct","R4400"
"Wolverhampton City Council","http://opendatacommunities.org/id/metropolitan-district-council/wolverhampton","707904","The British Library","139799209","14.00","Books","130211847","25/04/2018","Strategic Organisation Development","Global Budgets","R4309"
"Wolverhampton City Council","http://opendatacommunities.org/id/metropolitan-district-council/wolverhampton","707928","The Columbaria Company T/A Odlings","INV0058462","82.00","Materials","130213865","27/04/2018","Bereavement Services","Cemeteries","R4007"
"Wolverhampton City Council","http://opendatacommunities.org/id/metropolitan-district-council/wolverhampton","707928","The Columbaria Company T/A Odlings","INV0058465","80.00","Materials","130213866","27/04/2018","Bereavement Services","Cemeteries","R4007"
"Wolverhampton City Council","http://opendatacommunities.org/id/metropolitan-district-council/wolverhampton","707928","The Columbaria Company T/A Odlings","INV0059484","75.00","Materials","130210071","11/04/2018","Bereavement Services","Cemeteries","R4007"
"Wolverhampton City Council","http://opendatacommunities.org/id/metropolitan-district-council/wolverhampton","707928","The Columbaria Company T/A Odlings","INV0059192","80.00","Materials","130209064","04/04/2018","Bereavement Services","Cemeteries","R4007"
"Wolverhampton City Council","http://opendatacommunities.org/id/metropolitan-district-council/wolverhampton","707928","The Columbaria Company T/A Odlings","INV0058781","82.00","Materials","130213867","27/04/2018","Bereavement Services","Cemeteries","R4007"
"Wolverhampton City Council","http://opendatacommunities.org/id/metropolitan-district-council/wolverhampton","707946","The Disabled Adaptations Service","15/0410/DFG","1,302.66","Grants paid out","190444225","04/04/2018","","Disabled Facilities Grants","C5000"
"Wolverhampton City Council","http://opendatacommunities.org/id/metropolitan-district-council/wolverhampton","707946","The Disabled Adaptations Service","16/0619/DFG","439.64","Grants paid out to other organisations","190446176","11/04/2018","","Disabled Facilities Grants","C5011"
"Wolverhampton City Council","http://opendatacommunities.org/id/metropolitan-district-council/wolverhampton","707976","The Grange Residential Home","P170129 29041820180409","2,080.00","TPP - Residential Care - Long Term","190446396","11/04/2018","Older People Care Purchasing","OP Care Purchasing (Spot Placements)","R5400"
"Wolverhampton City Council","http://opendatacommunities.org/id/metropolitan-district-council/wolverhampton","707979","The Guitar Amp & Keyboard Centre Limited","GM10000667032","492.28","Equipment - R & M","130212287","20/04/2018","Standards and Vulnerable Pupils","Music Support Team","R4003"
"Wolverhampton City Council","http://opendatacommunities.org/id/metropolitan-district-council/wolverhampton","707985","The Headset Company UK Limited","4052667","822.71","Equipment - Purchase","130210072","11/04/2018","School Planning & Resources","Education Data Services","R4000"
"Wolverhampton City Council","http://opendatacommunities.org/id/metropolitan-district-council/wolverhampton","707985","The Headset Company UK Limited","4052663","323.15","Equipment - Purchase","130209612","06/04/2018","Customer Services","City Direct","R4000"
"Wolverhampton City Council","http://opendatacommunities.org/id/metropolitan-district-council/wolverhampton","707985","The Headset Company UK Limited","4050305","-62.95","Equipment - Purchase","130210334","06/04/2018","Customer Services","City Direct","R4000"
"Wolverhampton City Council","http://opendatacommunities.org/id/metropolitan-district-council/wolverhampton","707985","The Headset Company UK Limited","4050305","-6.95","Comms - Postage","130210334","06/04/2018","Customer Services","City Direct","R4503"
"Wolverhampton City Council","http://opendatacommunities.org/id/metropolitan-district-council/wolverhampton","707986","The Helping Hand Company","315461","55.00","Equipment - R & M","130212288","25/04/2018","Independent Living Service","Independent Living Service","R4003"
"Wolverhampton City Council","http://opendatacommunities.org/id/metropolitan-district-council/wolverhampton","707986","The Helping Hand Company","315461","533.00","Equipment - R & M","130212288","25/04/2018","Independent Living Service","Independent Living Service","R4003"
"Wolverhampton City Council","http://opendatacommunities.org/id/metropolitan-district-council/wolverhampton","708082","The Queen Victoria Hotel","P17072420180424","-42.00","TPP - Accommodation","190451387","25/04/2018","Learning Disabilities Care Purchasing","LD Care Purchasing (Spot Placements)","R5603"
"Wolverhampton City Council","http://opendatacommunities.org/id/metropolitan-district-council/wolverhampton","708082","The Queen Victoria Hotel","P17072420180424","336.00","TPP - Accommodation","190451387","25/04/2018","Learning Disabilities Care Purchasing","LD Care Purchasing (Spot Placements)","R5603"
"Wolverhampton City Council","http://opendatacommunities.org/id/metropolitan-district-council/wolverhampton","708090","The Refugee And Migrant Centre Limited","978","1,970.00","TPP - Social Care Support Services","130212112","11/04/2018","Early Intervention","Transformation Challenge Award","R5501"
"Wolverhampton City Council","http://opendatacommunities.org/id/metropolitan-district-council/wolverhampton","708090","The Refugee And Migrant Centre Limited","977","16,666.33","TPP - Social Care Support Services","130212663","18/04/2018","Housing Revenue Account","Single non statutory homelessness","R5501"
"Wolverhampton City Council","http://opendatacommunities.org/id/metropolitan-district-council/wolverhampton","708090","The Refugee And Migrant Centre Limited","975","4,733.97","TPP - Social Care Support Services","130212111","11/04/2018","Housing Revenue Account","Single non statutory homelessness","R5501"
"Wolverhampton City Council","http://opendatacommunities.org/id/metropolitan-district-council/wolverhampton","708090","The Refugee And Migrant Centre Limited","966","16,666.33","TPP - Social Care Support Services","130212662","18/04/2018","Housing Revenue Account","Single non statutory homelessness","R5501"
"Wolverhampton City Council","http://opendatacommunities.org/id/metropolitan-district-council/wolverhampton","708090","The Refugee And Migrant Centre Limited","974","14,817.00","Grant Payments","130210936","04/04/2018","Looked After Children","Supporting Emotional and Wellbeing of UASC","R4700"
"Wolverhampton City Council","http://opendatacommunities.org/id/metropolitan-district-council/wolverhampton","708099","The Royal Wolverhampton Hospitals","0000216160","43,805.00","TPP - Payments to Health Authorities","130211669","25/04/2018","Independent Living Service","Independent Living Service","R5101"
"Wolverhampton City Council","http://opendatacommunities.org/id/metropolitan-district-council/wolverhampton","708099","The Royal Wolverhampton Hospitals","0000215555","30,517.00","TPP - Payments to Health Authorities","130210747","11/04/2018","Standards and Vulnerable Pupils","SEN Special Education Admin","R5101"
"Wolverhampton City Council","http://opendatacommunities.org/id/metropolitan-district-council/wolverhampton","708099","The Royal Wolverhampton Hospitals","0000216356","39,635.58","TPP - Payments to Health Authorities","130212113","27/04/2018","Independent Living Service","Independent Living Service","R5101"
"Wolverhampton City Council","http://opendatacommunities.org/id/metropolitan-district-council/wolverhampton","708101","The Royal Wolverhampton School","P16996620180409","143.70","TPP - Supported Living","190448002","13/04/2018","Looked After Children","LAC Transitions Team","R5422"
"Wolverhampton City Council","http://opendatacommunities.org/id/metropolitan-district-council/wolverhampton","708101","The Royal Wolverhampton School","1111","3,095.00","TPP - Independent Schools","130213747","20/04/2018","Standards and Vulnerable Pupils","SEN Education OOC","R5036"
"Wolverhampton City Council","http://opendatacommunities.org/id/metropolitan-district-council/wolverhampton","708101","The Royal Wolverhampton School","P16953220180328","143.70","TPP - Supported Living","190442570","04/04/2018","Looked After Children","LAC Transitions Team","R5422"
"Wolverhampton City Council","http://opendatacommunities.org/id/metropolitan-district-council/wolverhampton","708101","The Royal Wolverhampton School","P17097020180416","143.70","TPP - Supported Living","190448590","18/04/2018","Looked After Children","LAC Transitions Team","R5422"
"Wolverhampton City Council","http://opendatacommunities.org/id/metropolitan-district-council/wolverhampton","708101","The Royal Wolverhampton School","1109","3,095.00","TPP - Independent Schools","130213871","25/04/2018","Standards and Vulnerable Pupils","SEN Education OOC","R5036"
"Wolverhampton City Council","http://opendatacommunities.org/id/metropolitan-district-council/wolverhampton","708101","The Royal Wolverhampton School","P17156220180420","143.70","TPP - Supported Living","190450292","25/04/2018","Looked After Children","LAC Transitions Team","R5422"
"Wolverhampton City Council","http://opendatacommunities.org/id/metropolitan-district-council/wolverhampton","708101","The Royal Wolverhampton School","P169975 29041820180410","4,782.75","TPP - Residential Care - Long Term","190446870","11/04/2018","Looked After Children","Out of City Placements","R5400"
"Wolverhampton City Council","http://opendatacommunities.org/id/metropolitan-district-council/wolverhampton","708101","The Royal Wolverhampton School","P169975 29041820180410","3,173.61","TPP - Residential Care - Long Term","190446870","11/04/2018","Looked After Children","Out of City Placements","R5400"
"Wolverhampton City Council","http://opendatacommunities.org/id/metropolitan-district-council/wolverhampton","708101","The Royal Wolverhampton School","1108","4,190.00","TPP - Independent Schools","130213746","20/04/2018","Standards and Vulnerable Pupils","SEN Education OOC","R5036"
"Wolverhampton City Council","http://opendatacommunities.org/id/metropolitan-district-council/wolverhampton","708101","The Royal Wolverhampton School","1110","4,190.00","TPP - Independent Schools","130213872","25/04/2018","Standards and Vulnerable Pupils","SEN Education OOC","R5036"
"Wolverhampton City Council","http://opendatacommunities.org/id/metropolitan-district-council/wolverhampton","708101","The Royal Wolverhampton School","1107","3,095.00","TPP - Independent Schools","130213870","25/04/2018","Standards and Vulnerable Pupils","SEN Education OOC","R5036"
"Wolverhampton City Council","http://opendatacommunities.org/id/metropolitan-district-council/wolverhampton","708130","The Switch Project Limited","TSP028-18","5,830.00","Services - Professional Fees","130211671","04/04/2018","Headstart","Headstart - Learning Technologies Team","R4400"
"Wolverhampton City Council","http://opendatacommunities.org/id/metropolitan-district-council/wolverhampton","708130","The Switch Project Limited","TSP032-18","5,060.00","TPP - Alternative Provision of Education","130213573","25/04/2018","Specialist Support","Alternative Provision","R5037"
"Wolverhampton City Council","http://opendatacommunities.org/id/metropolitan-district-council/wolverhampton","708130","The Switch Project Limited","TSP027-18","8,250.00","Services - Professional Fees","130211670","04/04/2018","Headstart","Headstart - Learning Technologies Team","R4400"
"Wolverhampton City Council","http://opendatacommunities.org/id/metropolitan-district-council/wolverhampton","708134","The Terrence Higgins Trust","29003089","4,166.67","TPP - Home Care","130210937","18/04/2018","Head of Commissioning","Terence Higgins Trust","R5420"
"Wolverhampton City Council","http://opendatacommunities.org/id/metropolitan-district-council/wolverhampton","708169","Thomas Fattorini Limited","I228557","1,619.65","Services - Professional Fees","130213748","25/04/2018","Democratic Services","Mayoral Expenses","R4400"
"Wolverhampton City Council","http://opendatacommunities.org/id/metropolitan-district-council/wolverhampton","708176","Thompson Avc Limited","35381","65.00","R&M - Departmental planned (external)","130211673","06/04/2018","Facilities Management","Hickman Avenue Depot","R2001"
"Wolverhampton City Council","http://opendatacommunities.org/id/metropolitan-district-council/wolverhampton","708176","Thompson Avc Limited","35284","76.80","R&M - Departmental planned (external)","130211287","04/04/2018","Markets","Wholesale Market Facilities Management","R2001"
"Wolverhampton City Council","http://opendatacommunities.org/id/metropolitan-district-council/wolverhampton","708176","Thompson Avc Limited","35436","283.93","R&M - Departmental planned (external)","130212668","13/04/2018","Facilities Management","Bilston Town Hall","R2001"
"Wolverhampton City Council","http://opendatacommunities.org/id/metropolitan-district-council/wolverhampton","708176","Thompson Avc Limited","35438","458.80","R&M - Departmental planned (external)","130212670","18/04/2018","Facilities Management","Bilston Town Hall","R2001"
"Wolverhampton City Council","http://opendatacommunities.org/id/metropolitan-district-council/wolverhampton","708176","Thompson Avc Limited","35486","95.00","R&M - Departmental planned (external)","130212529","18/04/2018","Markets","Wholesale Market Facilities Management","R2001"
"Wolverhampton City Council","http://opendatacommunities.org/id/metropolitan-district-council/wolverhampton","708176","Thompson Avc Limited","35487","1,988.33","R&M - Departmental planned (external)","130212530","11/04/2018","Environmental Maintenance","Ground Maintenance East","R2001"
"Wolverhampton City Council","http://opendatacommunities.org/id/metropolitan-district-council/wolverhampton","708176","Thompson Avc Limited","35380","119.00","R&M - Departmental planned (external)","130211672","06/04/2018","Facilities Management","Hickman Avenue Depot","R2001"
"Wolverhampton City Council","http://opendatacommunities.org/id/metropolitan-district-council/wolverhampton","708176","Thompson Avc Limited","35287","65.00","R&M - Departmental planned (external)","130211288","04/04/2018","Facilities Management","Hickman Avenue Depot","R2001"
"Wolverhampton City Council","http://opendatacommunities.org/id/metropolitan-district-council/wolverhampton","708176","Thompson Avc Limited","35435","140.60","R&M - Departmental planned (external)","130212667","13/04/2018","Cleaning","Priory Green","R2001"
"Wolverhampton City Council","http://opendatacommunities.org/id/metropolitan-district-council/wolverhampton","708176","Thompson Avc Limited","35414","105.00","R&M - Departmental planned (external)","130212664","18/04/2018","Cleaning","Priory Green","R2001"
"Wolverhampton City Council","http://opendatacommunities.org/id/metropolitan-district-council/wolverhampton","708176","Thompson Avc Limited","35383","160.00","R&M - Departmental planned (external)","130212114","18/04/2018","Facilities Management","Hickman Avenue Depot","R2001"
"Wolverhampton City Council","http://opendatacommunities.org/id/metropolitan-district-council/wolverhampton","708176","Thompson Avc Limited","35433","350.00","R&M - Departmental planned (external)","130212665","18/04/2018","Facilities Management","Culwell Street Depot","R2001"
"Wolverhampton City Council","http://opendatacommunities.org/id/metropolitan-district-council/wolverhampton","708176","Thompson Avc Limited","35434","30.00","R&M - Departmental planned (external)","130212666","13/04/2018","Cleaning","Priory Green","R2001"
"Wolverhampton City Council","http://opendatacommunities.org/id/metropolitan-district-council/wolverhampton","708176","Thompson Avc Limited","35434","65.00","R&M - Departmental planned (external)","130212666","13/04/2018","Cleaning","Priory Green","R2001"
"Wolverhampton City Council","http://opendatacommunities.org/id/metropolitan-district-council/wolverhampton","708176","Thompson Avc Limited","35437","395.00","R&M - Departmental planned (external)","130212669","20/04/2018","Markets","Wholesale Market Facilities Management","R2001"
"Wolverhampton City Council","http://opendatacommunities.org/id/metropolitan-district-council/wolverhampton","708176","Thompson Avc Limited","35440","165.00","R&M - Departmental planned (external)","130212672","18/04/2018","Facilities Management","Culwell Street Depot","R2001"
"Wolverhampton City Council","http://opendatacommunities.org/id/metropolitan-district-council/wolverhampton","708176","Thompson Avc Limited","35441","210.00","R&M - Departmental planned (external)","130212673","18/04/2018","Facilities Management","Bilston Town Hall","R2001"
"Wolverhampton City Council","http://opendatacommunities.org/id/metropolitan-district-council/wolverhampton","708176","Thompson Avc Limited","35374","1,342.43","R&M - Departmental planned (external)","130212295","11/04/2018","Facilities Management","i10 Facilities Management","R2001"
"Wolverhampton City Council","http://opendatacommunities.org/id/metropolitan-district-council/wolverhampton","708180","Thornes Legal Limited","965","1,500.00","Services - Professional Fees","130213233","20/04/2018","Legal Services","Centralised External Legal Costs","R4400"
"Wolverhampton City Council","http://opendatacommunities.org/id/metropolitan-district-council/wolverhampton","708180","Thornes Legal Limited","965","215.00","Services - Professional Fees","130213233","20/04/2018","Legal Services","Centralised External Legal Costs","R4400"
"Wolverhampton City Council","http://opendatacommunities.org/id/metropolitan-district-council/wolverhampton","708181","Thornley St Surgery","M2017Q415SHCIFIQ","100.00","TPP - Public Health Contracts","190451294","25/04/2018","Contracts","Sexual Health","R5060"
"Wolverhampton City Council","http://opendatacommunities.org/id/metropolitan-district-council/wolverhampton","708181","Thornley St Surgery","M2017Q415HL1IPRQ","1.00","TPP - Public Health Contracts","190451302","25/04/2018","Contracts","Healthy Lifestyles","R5060"
"Wolverhampton City Council","http://opendatacommunities.org/id/metropolitan-district-council/wolverhampton","708181","Thornley St Surgery","M2017Q415SHCIFRQ","495.00","TPP - Public Health Contracts","190451295","25/04/2018","Contracts","Sexual Health","R5060"
"Wolverhampton City Council","http://opendatacommunities.org/id/metropolitan-district-council/wolverhampton","708181","Thornley St Surgery","M2017Q4.15SHIUDRQ","175.00","TPP - Public Health Contracts","190451299","25/04/2018","Contracts","Sexual Health","R5060"
"Wolverhampton City Council","http://opendatacommunities.org/id/metropolitan-district-council/wolverhampton","708181","Thornley St Surgery","M2017Q415HL304NQ","70.00","TPP - Public Health Contracts","190451303","25/04/2018","Contracts","Healthy Lifestyles","R5060"
"Wolverhampton City Council","http://opendatacommunities.org/id/metropolitan-district-council/wolverhampton","708181","Thornley St Surgery","M2017Q415SHCHLAQ","416.00","TPP - Public Health Contracts","190451301","25/04/2018","Contracts","Sexual Health","R5060"
"Wolverhampton City Council","http://opendatacommunities.org/id/metropolitan-district-council/wolverhampton","708181","Thornley St Surgery","M2017Q415SHIUDFQ","500.00","TPP - Public Health Contracts","190451297","25/04/2018","Contracts","Sexual Health","R5060"
"Wolverhampton City Council","http://opendatacommunities.org/id/metropolitan-district-council/wolverhampton","708181","Thornley St Surgery","M2017Q415SHIUFRQ","100.00","TPP - Public Health Contracts","190451298","25/04/2018","Contracts","Sexual Health","R5060"
"Wolverhampton City Council","http://opendatacommunities.org/id/metropolitan-district-council/wolverhampton","708181","Thornley St Surgery","M2017Q415SHCIFBQ","240.00","TPP - Public Health Contracts","190451296","25/04/2018","Contracts","Sexual Health","R5060"
"Wolverhampton City Council","http://opendatacommunities.org/id/metropolitan-district-council/wolverhampton","708181","Thornley St Surgery","M2017Q4.15SHIURFQ","100.00","TPP - Public Health Contracts","190451300","25/04/2018","Contracts","Sexual Health","R5060"
"Wolverhampton City Council","http://opendatacommunities.org/id/metropolitan-district-council/wolverhampton","708183","Thorpe Mill Limited","49921","2,755.00","Equipment - Purchase","130210519","25/04/2018","Independent Living Service","Independent Living Service","R4000"
"Wolverhampton City Council","http://opendatacommunities.org/id/metropolitan-district-council/wolverhampton","708183","Thorpe Mill Limited","49930","21.65","Equipment - Purchase","130210938","18/04/2018","Independent Living Service","Independent Living Service","R4000"
"Wolverhampton City Council","http://opendatacommunities.org/id/metropolitan-district-council/wolverhampton","708183","Thorpe Mill Limited","49930","9.00","Equipment - Purchase","130210938","18/04/2018","Independent Living Service","Independent Living Service","R4000"
"Wolverhampton City Council","http://opendatacommunities.org/id/metropolitan-district-council/wolverhampton","708199","Time Systems (UK) Limited","163717","99.00","Equipment - R & M","130210939","04/04/2018","Parking Services","Car Parks Operational Staff","R4003"
"Wolverhampton City Council","http://opendatacommunities.org/id/metropolitan-district-council/wolverhampton","708201","Timeplan Fuel Solutions Limited","8871","180.00","Equipment - Purchase","190443961","04/04/2018","Fleet Services","Fleet Management","R4000"
"Wolverhampton City Council","http://opendatacommunities.org/id/metropolitan-district-council/wolverhampton","708201","Timeplan Fuel Solutions Limited","8871","10.00","Equipment - Purchase","190443961","04/04/2018","Fleet Services","Fleet Management","R4000"
"Wolverhampton City Council","http://opendatacommunities.org/id/metropolitan-district-council/wolverhampton","708216","Tlc College","0216","500.00","Room Hire","130210748","18/04/2018","Skills","Employment Programmes","R2201"
"Wolverhampton City Council","http://opendatacommunities.org/id/metropolitan-district-council/wolverhampton","708217","Tlc College Neighbourhood Nursery","TFT Summer 2018 Inst 1","14,148.00","Grant Payments","190451861","27/04/2018","Early Years","Early Years Entitlement Funding for Disadvantaged 2 Year Olds","R4700"
"Wolverhampton City Council","http://opendatacommunities.org/id/metropolitan-district-council/wolverhampton","708217","Tlc College Neighbourhood Nursery","1243","197.60","TPP - Child Care provided for client","130213998","25/04/2018","Adult Education","Discretionary Fund","R5034"
"Wolverhampton City Council","http://opendatacommunities.org/id/metropolitan-district-council/wolverhampton","708217","Tlc College Neighbourhood Nursery","1909","160.50","TPP - Child Care provided for client","130213999","25/04/2018","Adult Education","Discretionary Fund","R5034"
"Wolverhampton City Council","http://opendatacommunities.org/id/metropolitan-district-council/wolverhampton","708217","Tlc College Neighbourhood Nursery","NEF Summer 2018 INST 1","29,177.10","TPP - Private Nursery Education Funding","190451850","27/04/2018","Early Years","Early Years Universal Entitlement for 3 and 4 Year Olds","R5035"
"Wolverhampton City Council","http://opendatacommunities.org/id/metropolitan-district-council/wolverhampton","708217","Tlc College Neighbourhood Nursery","843","144.80","TPP - Child Care provided for client","130214001","25/04/2018","Adult Education","Discretionary Fund","R5034"
"Wolverhampton City Council","http://opendatacommunities.org/id/metropolitan-district-council/wolverhampton","708251","Total Gas & Power Limited","167753954","2,339.25","Gas","190447325","13/04/2018","Schools","Warstones Primary School","R2101"
"Wolverhampton City Council","http://opendatacommunities.org/id/metropolitan-district-council/wolverhampton","708251","Total Gas & Power Limited","167754383","1,035.82","Gas","190447367","13/04/2018","Corporate Asset Management","Central Utilities to Recharge","R2101"
"Wolverhampton City Council","http://opendatacommunities.org/id/metropolitan-district-council/wolverhampton","708251","Total Gas & Power Limited","167753734","4,119.14","Gas","190447303","13/04/2018","Corporate Asset Management","Central Utilities to Recharge","R2101"
"Wolverhampton City Council","http://opendatacommunities.org/id/metropolitan-district-council/wolverhampton","708251","Total Gas & Power Limited","168002609","116.78","Gas","190447422","13/04/2018","Corporate Asset Management","Central Utilities to Recharge","R2101"
"Wolverhampton City Council","http://opendatacommunities.org/id/metropolitan-district-council/wolverhampton","708251","Total Gas & Power Limited","168002280","167.97","Gas","190447390","13/04/2018","Schools","Bushbury Nursery","R2101"
"Wolverhampton City Council","http://opendatacommunities.org/id/metropolitan-district-council/wolverhampton","708251","Total Gas & Power Limited","168002774","175.51","Gas","190447439","13/04/2018","Schools","Wilkinson Primary School","R2101"
"Wolverhampton City Council","http://opendatacommunities.org/id/metropolitan-district-council/wolverhampton","708251","Total Gas & Power Limited","168003181","1,337.51","Gas","190447478","13/04/2018","Schools","Wood End Primary School","R2101"
"Wolverhampton City Council","http://opendatacommunities.org/id/metropolitan-district-council/wolverhampton","708251","Total Gas & Power Limited","168002565","155.59","Gas","190447418","13/04/2018","Corporate Asset Management","Central Utilities to Recharge","R2101"
"Wolverhampton City Council","http://opendatacommunities.org/id/metropolitan-district-council/wolverhampton","708251","Total Gas & Power Limited","168002510","159.04","Gas","190447413","13/04/2018","Corporate Asset Management","Central Utilities to Recharge","R2101"
"Wolverhampton City Council","http://opendatacommunities.org/id/metropolitan-district-council/wolverhampton","708251","Total Gas & Power Limited","168002125","1,980.13","Gas","190447374","13/04/2018","Corporate Asset Management","Central Utilities to Recharge","R2101"
"Wolverhampton City Council","http://opendatacommunities.org/id/metropolitan-district-council/wolverhampton","708251","Total Gas & Power Limited","168351012","1,943.06","Gas","190450864","25/04/2018","Schools","Penn Hall Special School","R2101"
"Wolverhampton City Council","http://opendatacommunities.org/id/metropolitan-district-council/wolverhampton","708251","Total Gas & Power Limited","168003269C","-818.94","Gas","190450866","25/04/2018","Corporate Asset Management","Central Utilities to Recharge","R2101"
"Wolverhampton City Council","http://opendatacommunities.org/id/metropolitan-district-council/wolverhampton","708251","Total Gas & Power Limited","167754361","1,418.52","Gas","190447365","13/04/2018","Corporate Asset Management","Central Utilities to Recharge","R2101"
"Wolverhampton City Council","http://opendatacommunities.org/id/metropolitan-district-council/wolverhampton","708251","Total Gas & Power Limited","167754340","311.10","Gas","190447363","13/04/2018","Corporate Asset Management","Central Utilities to Recharge","R2101"
"Wolverhampton City Council","http://opendatacommunities.org/id/metropolitan-district-council/wolverhampton","708251","Total Gas & Power Limited","168002499","52.98","Gas","190447411","13/04/2018","Corporate Asset Management","Central Utilities to Recharge","R2101"
"Wolverhampton City Council","http://opendatacommunities.org/id/metropolitan-district-council/wolverhampton","708251","Total Gas & Power Limited","168002862","66.10","Gas","190447448","13/04/2018","Schools","Penn Hall Special School","R2101"
"Wolverhampton City Council","http://opendatacommunities.org/id/metropolitan-district-council/wolverhampton","708251","Total Gas & Power Limited","168002940","59.83","Gas","190447456","13/04/2018","Schools","Stowheath Primary School","R2101"
"Wolverhampton City Council","http://opendatacommunities.org/id/metropolitan-district-council/wolverhampton","708251","Total Gas & Power Limited","168002928","53.92","Gas","190447454","13/04/2018","Schools","Christ Church (Church of England) Junior School","R2101"
"Wolverhampton City Council","http://opendatacommunities.org/id/metropolitan-district-council/wolverhampton","708251","Total Gas & Power Limited","168002741","26.04","Gas","190447436","13/04/2018","Facilities Management","Management of Vacant Properties","R2101"
"Wolverhampton City Council","http://opendatacommunities.org/id/metropolitan-district-council/wolverhampton","708251","Total Gas & Power Limited","166893259","1,382.19","Gas","190441972","04/04/2018","Schools","Villiers Primary School","R2101"
"Wolverhampton City Council","http://opendatacommunities.org/id/metropolitan-district-council/wolverhampton","708251","Total Gas & Power Limited","166922706","1,564.26","Gas","190441974","04/04/2018","Schools","D�Eyncourt Primary School","R2101"
"Wolverhampton City Council","http://opendatacommunities.org/id/metropolitan-district-council/wolverhampton","708251","Total Gas & Power Limited","163254096","1,154.16","Electricity","190441983","04/04/2018","Schools","Oak Meadow Primary School","R2100"
"Wolverhampton City Council","http://opendatacommunities.org/id/metropolitan-district-council/wolverhampton","708251","Total Gas & Power Limited","154324296a","-28.83","Gas","190442007","04/04/2018","Facilities Management","Management of Vacant Properties","R2101"
"Wolverhampton City Council","http://opendatacommunities.org/id/metropolitan-district-council/wolverhampton","708251","Total Gas & Power Limited","166123259a","614.99","Gas","190442099","04/04/2018","Schools","Wodensfield Primary School","R2101"
"Wolverhampton City Council","http://opendatacommunities.org/id/metropolitan-district-council/wolverhampton","708251","Total Gas & Power Limited","150856722a","-32.56","Gas","190442005","04/04/2018","Facilities Management","Management of Vacant Properties","R2101"
"Wolverhampton City Council","http://opendatacommunities.org/id/metropolitan-district-council/wolverhampton","708251","Total Gas & Power Limited","147055254a","-39.85","Gas","190442003","04/04/2018","Facilities Management","Management of Vacant Properties","R2101"
"Wolverhampton City Council","http://opendatacommunities.org/id/metropolitan-district-council/wolverhampton","708251","Total Gas & Power Limited","166123260a","35.37","Gas","190442100","04/04/2018","Corporate Asset Management","Central Utilities to Recharge","R2101"
"Wolverhampton City Council","http://opendatacommunities.org/id/metropolitan-district-council/wolverhampton","708251","Total Gas & Power Limited","166123248a","50.34","Gas","190442098","04/04/2018","Schools","Wodensfield Primary School","R2101"
"Wolverhampton City Council","http://opendatacommunities.org/id/metropolitan-district-council/wolverhampton","708251","Total Gas & Power Limited","166123303a","448.38","Gas","190442104","04/04/2018","Schools","Woodthorne Primary School","R2101"
"Wolverhampton City Council","http://opendatacommunities.org/id/metropolitan-district-council/wolverhampton","708251","Total Gas & Power Limited","166070503a","35.37","Gas","190442021","04/04/2018","Corporate Asset Management","Central Utilities to Recharge","R2101"
"Wolverhampton City Council","http://opendatacommunities.org/id/metropolitan-district-council/wolverhampton","708251","Total Gas & Power Limited","166070525a","79.29","Gas","190442023","04/04/2018","Schools","Trinity Church of England Primary School","R2101"
"Wolverhampton City Council","http://opendatacommunities.org/id/metropolitan-district-council/wolverhampton","708251","Total Gas & Power Limited","166123370a","45.40","Gas","190442110","04/04/2018","Schools","Christ Church (Church of England) Junior School","R2101"
"Wolverhampton City Council","http://opendatacommunities.org/id/metropolitan-district-council/wolverhampton","708251","Total Gas & Power Limited","166070613a","826.02","Gas","190442031","04/04/2018","Corporate Asset Management","Central Utilities to Recharge","R2101"
"Wolverhampton City Council","http://opendatacommunities.org/id/metropolitan-district-council/wolverhampton","708251","Total Gas & Power Limited","166123150a","179.75","Gas","190442091","04/04/2018","Schools","St Anthony�s Catholic Primary School","R2101"
"Wolverhampton City Council","http://opendatacommunities.org/id/metropolitan-district-council/wolverhampton","708251","Total Gas & Power Limited","165743286a","180.18","Gas","190442014","04/04/2018","Corporate Asset Management","Central Utilities to Recharge","R2101"
"Wolverhampton City Council","http://opendatacommunities.org/id/metropolitan-district-council/wolverhampton","708251","Total Gas & Power Limited","166123622a","1,545.21","Gas","190442135","04/04/2018","Corporate Asset Management","Central Utilities to Recharge","R2101"
"Wolverhampton City Council","http://opendatacommunities.org/id/metropolitan-district-council/wolverhampton","708251","Total Gas & Power Limited","166123600a","451.65","Gas","190442133","04/04/2018","Schools","St Alban�s Church of England Primary School","R2101"
"Wolverhampton City Council","http://opendatacommunities.org/id/metropolitan-district-council/wolverhampton","708251","Total Gas & Power Limited","166123237a","289.23","Gas","190442097","04/04/2018","Corporate Asset Management","Central Utilities to Recharge","R2101"
"Wolverhampton City Council","http://opendatacommunities.org/id/metropolitan-district-council/wolverhampton","708251","Total Gas & Power Limited","166123655a","70.89","Gas","190442138","04/04/2018","Corporate Asset Management","Central Utilities to Recharge","R2101"
"Wolverhampton City Council","http://opendatacommunities.org/id/metropolitan-district-council/wolverhampton","708251","Total Gas & Power Limited","166123732a","192.33","Gas","190442146","04/04/2018","Corporate Asset Management","Central Utilities to Recharge","R2101"
"Wolverhampton City Council","http://opendatacommunities.org/id/metropolitan-district-council/wolverhampton","708251","Total Gas & Power Limited","166123787a","133.35","Gas","190442151","04/04/2018","Corporate Asset Management","Central Utilities to Recharge","R2101"
"Wolverhampton City Council","http://opendatacommunities.org/id/metropolitan-district-council/wolverhampton","708251","Total Gas & Power Limited","166123743a","143.90","Gas","190442147","04/04/2018","Corporate Asset Management","Central Utilities to Recharge","R2101"
"Wolverhampton City Council","http://opendatacommunities.org/id/metropolitan-district-council/wolverhampton","708251","Total Gas & Power Limited","166078830a","175.15","Gas","190442065","04/04/2018","Corporate Asset Management","Central Utilities to Recharge","R2101"
"Wolverhampton City Council","http://opendatacommunities.org/id/metropolitan-district-council/wolverhampton","708251","Total Gas & Power Limited","166078852a","852.31","Gas","190442067","04/04/2018","Schools","St Paul�s Church of England (Aided) School","R2101"
"Wolverhampton City Council","http://opendatacommunities.org/id/metropolitan-district-council/wolverhampton","708251","Total Gas & Power Limited","166078720a","439.07","Gas","190442055","04/04/2018","Schools","Loxdale Primary School","R2101"
"Wolverhampton City Council","http://opendatacommunities.org/id/metropolitan-district-council/wolverhampton","708251","Total Gas & Power Limited","166078786a","543.23","Gas","190442060","04/04/2018","Corporate Asset Management","Central Utilities to Recharge","R2101"
"Wolverhampton City Council","http://opendatacommunities.org/id/metropolitan-district-council/wolverhampton","708251","Total Gas & Power Limited","166078742a","529.66","Gas","190442057","04/04/2018","Schools","Uplands Junior School","R2101"
"Wolverhampton City Council","http://opendatacommunities.org/id/metropolitan-district-council/wolverhampton","708251","Total Gas & Power Limited","166123699a","107.04","Gas","190442142","04/04/2018","Corporate Asset Management","Central Utilities to Recharge","R2101"
"Wolverhampton City Council","http://opendatacommunities.org/id/metropolitan-district-council/wolverhampton","708251","Total Gas & Power Limited","166123919a","58.45","Gas","190442164","04/04/2018","Corporate Asset Management","Central Utilities to Recharge","R2101"
"Wolverhampton City Council","http://opendatacommunities.org/id/metropolitan-district-council/wolverhampton","708251","Total Gas & Power Limited","166078951a","76.98","Gas","190442077","04/04/2018","Corporate Asset Management","Central Utilities to Recharge","R2101"
"Wolverhampton City Council","http://opendatacommunities.org/id/metropolitan-district-council/wolverhampton","708251","Total Gas & Power Limited","166078940a","23.52","Gas","190442076","04/04/2018","Corporate Asset Management","Central Utilities to Recharge","R2101"
"Wolverhampton City Council","http://opendatacommunities.org/id/metropolitan-district-council/wolverhampton","708251","Total Gas & Power Limited","166123897a","94.05","Gas","190442162","04/04/2018","Schools","Phoenix Nursery","R2101"
"Wolverhampton City Council","http://opendatacommunities.org/id/metropolitan-district-council/wolverhampton","708251","Total Gas & Power Limited","166123952a","71.88","Gas","190442168","04/04/2018","Schools","Christ Church (Tettenhall Wood) Infant School","R2101"
"Wolverhampton City Council","http://opendatacommunities.org/id/metropolitan-district-council/wolverhampton","708251","Total Gas & Power Limited","166124238a","379.55","Gas","190442196","04/04/2018","Corporate Asset Management","Central Utilities to Recharge","R2101"
"Wolverhampton City Council","http://opendatacommunities.org/id/metropolitan-district-council/wolverhampton","708251","Total Gas & Power Limited","166124183a","1,840.97","Gas","190442191","04/04/2018","Corporate Asset Management","Central Utilities to Recharge","R2101"
"Wolverhampton City Council","http://opendatacommunities.org/id/metropolitan-district-council/wolverhampton","708251","Total Gas & Power Limited","166124029a","173.29","Gas","190442175","04/04/2018","Schools","Bushbury Nursery","R2101"
"Wolverhampton City Council","http://opendatacommunities.org/id/metropolitan-district-council/wolverhampton","708251","Total Gas & Power Limited","166124139a","23.52","Gas","190442186","04/04/2018","Corporate Asset Management","Central Utilities to Recharge","R2101"
"Wolverhampton City Council","http://opendatacommunities.org/id/metropolitan-district-council/wolverhampton","708251","Total Gas & Power Limited","166124293a","284.32","Gas","190442202","04/04/2018","Corporate Asset Management","Central Utilities to Recharge","R2101"
"Wolverhampton City Council","http://opendatacommunities.org/id/metropolitan-district-council/wolverhampton","708251","Total Gas & Power Limited","166124337a","467.21","Gas","190442206","04/04/2018","Schools","St Patrick�s Catholic Primary School","R2101"
"Wolverhampton City Council","http://opendatacommunities.org/id/metropolitan-district-council/wolverhampton","708251","Total Gas & Power Limited","166124172a","269.07","Gas","190442190","04/04/2018","Corporate Asset Management","Central Utilities to Recharge","R2101"
"Wolverhampton City Council","http://opendatacommunities.org/id/metropolitan-district-council/wolverhampton","708251","Total Gas & Power Limited","166124370a","757.20","Gas","190442210","04/04/2018","Corporate Asset Management","Central Utilities to Recharge","R2101"
"Wolverhampton City Council","http://opendatacommunities.org/id/metropolitan-district-council/wolverhampton","708251","Total Gas & Power Limited","166124348a","480.37","Gas","190442207","04/04/2018","Corporate Asset Management","Central Utilities to Recharge","R2101"
"Wolverhampton City Council","http://opendatacommunities.org/id/metropolitan-district-council/wolverhampton","708251","Total Gas & Power Limited","166124315a","290.15","Gas","190442204","04/04/2018","Corporate Asset Management","Central Utilities to Recharge","R2101"
"Wolverhampton City Council","http://opendatacommunities.org/id/metropolitan-district-council/wolverhampton","708251","Total Gas & Power Limited","166124326a","110.41","Gas","190442205","04/04/2018","Corporate Asset Management","Central Utilities to Recharge","R2101"
"Wolverhampton City Council","http://opendatacommunities.org/id/metropolitan-district-council/wolverhampton","708251","Total Gas & Power Limited","166124161a","1,104.33","Gas","190442189","04/04/2018","Corporate Asset Management","Central Utilities to Recharge","R2101"
"Wolverhampton City Council","http://opendatacommunities.org/id/metropolitan-district-council/wolverhampton","708251","Total Gas & Power Limited","166124470a","1,077.07","Gas","190442220","04/04/2018","Corporate Asset Management","Central Utilities to Recharge","R2101"
"Wolverhampton City Council","http://opendatacommunities.org/id/metropolitan-district-council/wolverhampton","708251","Total Gas & Power Limited","166124425a","35.37","Gas","190442215","04/04/2018","Facilities Management","Management of Vacant Properties","R2101"
"Wolverhampton City Council","http://opendatacommunities.org/id/metropolitan-district-council/wolverhampton","708251","Total Gas & Power Limited","166124491a","469.21","Gas","190442222","04/04/2018","Schools","Villiers Primary School","R2101"
"Wolverhampton City Council","http://opendatacommunities.org/id/metropolitan-district-council/wolverhampton","708251","Total Gas & Power Limited","166124480a","544.42","Gas","190442221","04/04/2018","Corporate Asset Management","Central Utilities to Recharge","R2101"
"Wolverhampton City Council","http://opendatacommunities.org/id/metropolitan-district-council/wolverhampton","708251","Total Gas & Power Limited","166124436a","98.56","Gas","190442216","04/04/2018","Corporate Asset Management","Central Utilities to Recharge","R2101"
"Wolverhampton City Council","http://opendatacommunities.org/id/metropolitan-district-council/wolverhampton","708251","Total Gas & Power Limited","166124601a","330.05","Gas","190442232","04/04/2018","Corporate Asset Management","Central Utilities to Recharge","R2101"
"Wolverhampton City Council","http://opendatacommunities.org/id/metropolitan-district-council/wolverhampton","708251","Total Gas & Power Limited","166124590a","363.38","Gas","190442231","04/04/2018","Corporate Asset Management","Central Utilities to Recharge","R2101"
"Wolverhampton City Council","http://opendatacommunities.org/id/metropolitan-district-council/wolverhampton","708251","Total Gas & Power Limited","166078511a","574.43","Gas","190442034","04/04/2018","Schools","Wodensfield Primary School","R2101"
"Wolverhampton City Council","http://opendatacommunities.org/id/metropolitan-district-council/wolverhampton","708251","Total Gas & Power Limited","166123424a","68.90","Gas","190442115","04/04/2018","Schools","Penn Hall Special School","R2101"
"Wolverhampton City Council","http://opendatacommunities.org/id/metropolitan-district-council/wolverhampton","708251","Total Gas & Power Limited","166123435a","85.67","Gas","190442116","04/04/2018","Schools","Penn Hall Special School","R2101"
"Wolverhampton City Council","http://opendatacommunities.org/id/metropolitan-district-council/wolverhampton","708251","Total Gas & Power Limited","166078621a","726.13","Gas","190442045","04/04/2018","Corporate Asset Management","Central Utilities to Recharge","R2101"
"Wolverhampton City Council","http://opendatacommunities.org/id/metropolitan-district-council/wolverhampton","708251","Total Gas & Power Limited","166123556a","23.52","Gas","190442128","04/04/2018","Facilities Management","Management of Vacant Properties","R2101"
"Wolverhampton City Council","http://opendatacommunities.org/id/metropolitan-district-council/wolverhampton","708251","Total Gas & Power Limited","166123545a","989.33","Gas","190442127","04/04/2018","Corporate Asset Management","Central Utilities to Recharge","R2101"
"Wolverhampton City Council","http://opendatacommunities.org/id/metropolitan-district-council/wolverhampton","708251","Total Gas & Power Limited","166078588a","4,975.64","Gas","190442041","04/04/2018","Corporate Asset Management","Central Utilities to Recharge","R2101"
"Wolverhampton City Council","http://opendatacommunities.org/id/metropolitan-district-council/wolverhampton","708251","Total Gas & Power Limited","167754053","26.04","Gas","190447335","13/04/2018","Corporate Asset Management","Central Utilities to Recharge","R2101"
"Wolverhampton City Council","http://opendatacommunities.org/id/metropolitan-district-council/wolverhampton","708251","Total Gas & Power Limited","167754031","405.35","Gas","190447333","13/04/2018","Corporate Asset Management","Central Utilities to Recharge","R2101"
"Wolverhampton City Council","http://opendatacommunities.org/id/metropolitan-district-council/wolverhampton","708251","Total Gas & Power Limited","168003280","86.57","Gas","190447488","13/04/2018","Corporate Asset Management","Central Utilities to Recharge","R2101"
"Wolverhampton City Council","http://opendatacommunities.org/id/metropolitan-district-council/wolverhampton","708251","Total Gas & Power Limited","167754240","270.47","Gas","190447353","13/04/2018","Corporate Asset Management","Central Utilities to Recharge","R2101"
"Wolverhampton City Council","http://opendatacommunities.org/id/metropolitan-district-council/wolverhampton","708251","Total Gas & Power Limited","168002720","85.10","Gas","190447434","13/04/2018","Facilities Management","Management of Vacant Properties","R2101"
"Wolverhampton City Council","http://opendatacommunities.org/id/metropolitan-district-council/wolverhampton","708251","Total Gas & Power Limited","167753602","511.31","Gas","190447290","13/04/2018","Schools","St Luke�s Church of England Aided Primary School","R2101"
"Wolverhampton City Council","http://opendatacommunities.org/id/metropolitan-district-council/wolverhampton","708251","Total Gas & Power Limited","168003192","39.16","Gas","190447479","13/04/2018","Corporate Asset Management","Central Utilities to Recharge","R2101"
"Wolverhampton City Council","http://opendatacommunities.org/id/metropolitan-district-council/wolverhampton","708251","Total Gas & Power Limited","168002202","39.16","Gas","190447382","13/04/2018","Facilities Management","Management of Vacant Properties","R2101"
"Wolverhampton City Council","http://opendatacommunities.org/id/metropolitan-district-council/wolverhampton","708251","Total Gas & Power Limited","168002246","216.00","Gas","190447386","13/04/2018","Corporate Asset Management","Central Utilities to Recharge","R2101"
"Wolverhampton City Council","http://opendatacommunities.org/id/metropolitan-district-council/wolverhampton","708251","Total Gas & Power Limited","168002411","27.43","Gas","190447403","13/04/2018","Facilities Management","Management of Vacant Properties","R2101"
"Wolverhampton City Council","http://opendatacommunities.org/id/metropolitan-district-council/wolverhampton","708251","Total Gas & Power Limited","168002268","204.14","Gas","190447388","13/04/2018","Corporate Asset Management","Central Utilities to Recharge","R2101"
"Wolverhampton City Council","http://opendatacommunities.org/id/metropolitan-district-council/wolverhampton","708251","Total Gas & Power Limited","168003380","35.33","Gas","190447496","13/04/2018","Corporate Asset Management","Central Utilities to Recharge","R2101"
"Wolverhampton City Council","http://opendatacommunities.org/id/metropolitan-district-council/wolverhampton","708251","Total Gas & Power Limited","168003291","284.36","Gas","190447489","13/04/2018","Corporate Asset Management","Central Utilities to Recharge","R2101"
"Wolverhampton City Council","http://opendatacommunities.org/id/metropolitan-district-council/wolverhampton","708251","Total Gas & Power Limited","168002785","26.04","Gas","190447440","13/04/2018","Corporate Asset Management","Central Utilities to Recharge","R2101"
"Wolverhampton City Council","http://opendatacommunities.org/id/metropolitan-district-council/wolverhampton","708251","Total Gas & Power Limited","168003313","63.93","Gas","190447491","13/04/2018","Schools","Uplands Junior School","R2101"
"Wolverhampton City Council","http://opendatacommunities.org/id/metropolitan-district-council/wolverhampton","708251","Total Gas & Power Limited","167753976","594.95","Gas","190447327","13/04/2018","Schools","West Park Primary School","R2101"
"Wolverhampton City Council","http://opendatacommunities.org/id/metropolitan-district-council/wolverhampton","708251","Total Gas & Power Limited","167753998","632.42","Gas","190447329","13/04/2018","Schools","Lanesfield Primary School","R2101"
"Wolverhampton City Council","http://opendatacommunities.org/id/metropolitan-district-council/wolverhampton","708251","Total Gas & Power Limited","167753789","536.74","Gas","190447308","13/04/2018","Schools","Uplands Junior School","R2101"
"Wolverhampton City Council","http://opendatacommunities.org/id/metropolitan-district-council/wolverhampton","708251","Total Gas & Power Limited","167753790","888.10","Gas","190447309","13/04/2018","Corporate Asset Management","Central Utilities to Recharge","R2101"
"Wolverhampton City Council","http://opendatacommunities.org/id/metropolitan-district-council/wolverhampton","708251","Total Gas & Power Limited","167753987","557.71","Gas","190447328","13/04/2018","Schools","St Anthony�s Catholic Primary School","R2101"
"Wolverhampton City Council","http://opendatacommunities.org/id/metropolitan-district-council/wolverhampton","708251","Total Gas & Power Limited","168002994","457.85","Gas","190447460","13/04/2018","Schools","Woodthorne Primary School","R2101"
"Wolverhampton City Council","http://opendatacommunities.org/id/metropolitan-district-council/wolverhampton","708251","Total Gas & Power Limited","168002752","973.84","Gas","190447437","13/04/2018","Corporate Asset Management","Central Utilities to Recharge","R2101"
"Wolverhampton City Council","http://opendatacommunities.org/id/metropolitan-district-council/wolverhampton","708251","Total Gas & Power Limited","168003148","68.89","Gas","190447474","13/04/2018","Schools","St Anthony�s Catholic Primary School","R2101"
"Wolverhampton City Council","http://opendatacommunities.org/id/metropolitan-district-council/wolverhampton","708251","Total Gas & Power Limited","167754251","798.35","Gas","190447354","13/04/2018","Corporate Asset Management","Central Utilities to Recharge","R2101"
"Wolverhampton City Council","http://opendatacommunities.org/id/metropolitan-district-council/wolverhampton","708251","Total Gas & Power Limited","167754009","582.96","Gas","190447330","13/04/2018","Schools","Wodensfield Primary School","R2101"
"Wolverhampton City Council","http://opendatacommunities.org/id/metropolitan-district-council/wolverhampton","708251","Total Gas & Power Limited","167754174","466.01","Gas","190447346","13/04/2018","Corporate Asset Management","Central Utilities to Recharge","R2101"
"Wolverhampton City Council","http://opendatacommunities.org/id/metropolitan-district-council/wolverhampton","708251","Total Gas & Power Limited","168003115","1,126.09","Gas","190447471","13/04/2018","Schools","Fallings Park Primary School","R2101"
"Wolverhampton City Council","http://opendatacommunities.org/id/metropolitan-district-council/wolverhampton","708251","Total Gas & Power Limited","168002576","107.17","Gas","190447419","13/04/2018","Corporate Asset Management","Central Utilities to Recharge","R2101"
"Wolverhampton City Council","http://opendatacommunities.org/id/metropolitan-district-council/wolverhampton","708251","Total Gas & Power Limited","168003324","573.43","Gas","190447492","13/04/2018","Schools","Eastfield Nursery","R2101"
"Wolverhampton City Council","http://opendatacommunities.org/id/metropolitan-district-council/wolverhampton","708251","Total Gas & Power Limited","168002114","541.53","Gas","190447373","13/04/2018","Corporate Asset Management","Central Utilities to Recharge","R2101"
"Wolverhampton City Council","http://opendatacommunities.org/id/metropolitan-district-council/wolverhampton","708251","Total Gas & Power Limited","168002147","1,107.23","Gas","190447376","13/04/2018","Corporate Asset Management","Central Utilities to Recharge","R2101"
"Wolverhampton City Council","http://opendatacommunities.org/id/metropolitan-district-council/wolverhampton","708251","Total Gas & Power Limited","168002378","75.39","Gas","190447399","13/04/2018","Corporate Asset Management","Central Utilities to Recharge","R2101"
"Wolverhampton City Council","http://opendatacommunities.org/id/metropolitan-district-council/wolverhampton","708251","Total Gas & Power Limited","168002433","78.70","Gas","190447405","13/04/2018","Schools","Eastfield Nursery","R2101"
"Wolverhampton City Council","http://opendatacommunities.org/id/metropolitan-district-council/wolverhampton","708251","Total Gas & Power Limited","168003269","818.94","Gas","190447486","13/04/2018","Corporate Asset Management","Central Utilities to Recharge","R2101"
"Wolverhampton City Council","http://opendatacommunities.org/id/metropolitan-district-council/wolverhampton","708251","Total Gas & Power Limited","145861006","81.84","Electricity","190447033","11/04/2018","Corporate Asset Management","Central Utilities to Recharge","R2100"
"Wolverhampton City Council","http://opendatacommunities.org/id/metropolitan-district-council/wolverhampton","708251","Total Gas & Power Limited","141218270","1,204.86","Electricity","190447028","11/04/2018","Schools","Oak Meadow Primary School","R2100"
"Wolverhampton City Council","http://opendatacommunities.org/id/metropolitan-district-council/wolverhampton","708251","Total Gas & Power Limited","139782879","1,069.77","Electricity","190447029","11/04/2018","Schools","Oak Meadow Primary School","R2100"
"Wolverhampton City Council","http://opendatacommunities.org/id/metropolitan-district-council/wolverhampton","708251","Total Gas & Power Limited","159519431","994.58","Electricity","190447024","11/04/2018","Schools","Oak Meadow Primary School","R2100"
"Wolverhampton City Council","http://opendatacommunities.org/id/metropolitan-district-council/wolverhampton","708251","Total Gas & Power Limited","157517332","684.73","Electricity","190447042","11/04/2018","Schools","Lanesfield Primary School","R2100"
"Wolverhampton City Council","http://opendatacommunities.org/id/metropolitan-district-council/wolverhampton","708251","Total Gas & Power Limited","159940841","406.79","Electricity","190447037","11/04/2018","Corporate Asset Management","Central Utilities to Recharge","R2100"
"Wolverhampton City Council","http://opendatacommunities.org/id/metropolitan-district-council/wolverhampton","708251","Total Gas & Power Limited","168002169","381.42","Gas","190447378","13/04/2018","Corporate Asset Management","Central Utilities to Recharge","R2101"
"Wolverhampton City Council","http://opendatacommunities.org/id/metropolitan-district-council/wolverhampton","708251","Total Gas & Power Limited","167753657","325.86","Gas","190447295","13/04/2018","Schools","St Thomas� Church of England Primary School","R2101"
"Wolverhampton City Council","http://opendatacommunities.org/id/metropolitan-district-council/wolverhampton","708251","Total Gas & Power Limited","167753679","876.57","Gas","190447297","13/04/2018","Schools","St Paul�s Church of England (Aided) School","R2101"
"Wolverhampton City Council","http://opendatacommunities.org/id/metropolitan-district-council/wolverhampton","708251","Total Gas & Power Limited","167753778","685.31","Gas","190447307","13/04/2018","Schools","Westacre Infant School","R2101"
"Wolverhampton City Council","http://opendatacommunities.org/id/metropolitan-district-council/wolverhampton","708251","Total Gas & Power Limited","167754394","527.42","Gas","190447368","13/04/2018","Corporate Asset Management","Central Utilities to Recharge","R2101"
"Wolverhampton City Council","http://opendatacommunities.org/id/metropolitan-district-council/wolverhampton","708251","Total Gas & Power Limited","167754042","629.28","Gas","190447334","13/04/2018","Corporate Asset Management","Central Utilities to Recharge","R2101"
"Wolverhampton City Council","http://opendatacommunities.org/id/metropolitan-district-council/wolverhampton","708251","Total Gas & Power Limited","167754273","539.85","Gas","190447356","13/04/2018","Corporate Asset Management","Central Utilities to Recharge","R2101"
"Wolverhampton City Council","http://opendatacommunities.org/id/metropolitan-district-council/wolverhampton","708251","Total Gas & Power Limited","167754075","567.49","Gas","190447337","13/04/2018","Corporate Asset Management","Central Utilities to Recharge","R2101"
"Wolverhampton City Council","http://opendatacommunities.org/id/metropolitan-district-council/wolverhampton","708251","Total Gas & Power Limited","168002763","941.88","Gas","190447438","13/04/2018","Schools","Bantock Primary School","R2101"
"Wolverhampton City Council","http://opendatacommunities.org/id/metropolitan-district-council/wolverhampton","708251","Total Gas & Power Limited","168002884","487.72","Gas","190447450","13/04/2018","Schools","Penn Hall Special School","R2101"
"Wolverhampton City Council","http://opendatacommunities.org/id/metropolitan-district-council/wolverhampton","708251","Total Gas & Power Limited","168003049","594.53","Gas","190447465","13/04/2018","Schools","Wodensfield Primary School","R2101"
"Wolverhampton City Council","http://opendatacommunities.org/id/metropolitan-district-council/wolverhampton","708251","Total Gas & Power Limited","168002345","81.33","Gas","190447396","13/04/2018","Schools","Christ Church (Tettenhall Wood) Infant School","R2101"
"Wolverhampton City Council","http://opendatacommunities.org/id/metropolitan-district-council/wolverhampton","708251","Total Gas & Power Limited","167754010","558.38","Gas","190447331","13/04/2018","Corporate Asset Management","Central Utilities to Recharge","R2101"
"Wolverhampton City Council","http://opendatacommunities.org/id/metropolitan-district-council/wolverhampton","708251","Total Gas & Power Limited","168003225","78.65","Gas","190447482","13/04/2018","Schools","Springdale Primary School","R2101"
"Wolverhampton City Council","http://opendatacommunities.org/id/metropolitan-district-council/wolverhampton","708251","Total Gas & Power Limited","168003346","87.89","Gas","190447494","13/04/2018","Corporate Asset Management","Central Utilities to Recharge","R2101"
"Wolverhampton City Council","http://opendatacommunities.org/id/metropolitan-district-council/wolverhampton","708251","Total Gas & Power Limited","167753591","110.93","Gas","190447289","13/04/2018","Corporate Asset Management","Central Utilities to Recharge","R2101"
"Wolverhampton City Council","http://opendatacommunities.org/id/metropolitan-district-council/wolverhampton","708251","Total Gas & Power Limited","167754185","122.24","Gas","190447347","13/04/2018","Corporate Asset Management","Central Utilities to Recharge","R2101"
"Wolverhampton City Council","http://opendatacommunities.org/id/metropolitan-district-council/wolverhampton","708251","Total Gas & Power Limited","167754152","664.39","Gas","190447344","13/04/2018","Corporate Asset Management","Central Utilities to Recharge","R2101"
"Wolverhampton City Council","http://opendatacommunities.org/id/metropolitan-district-council/wolverhampton","708251","Total Gas & Power Limited","168002158","1,065.44","Gas","190447377","13/04/2018","Corporate Asset Management","Central Utilities to Recharge","R2101"
"Wolverhampton City Council","http://opendatacommunities.org/id/metropolitan-district-council/wolverhampton","708251","Total Gas & Power Limited","167753613","484.75","Gas","190447291","13/04/2018","Schools","Merridale Primary School","R2101"
"Wolverhampton City Council","http://opendatacommunities.org/id/metropolitan-district-council/wolverhampton","708251","Total Gas & Power Limited","167754372","464.90","Gas","190447366","13/04/2018","Corporate Asset Management","Central Utilities to Recharge","R2101"
"Wolverhampton City Council","http://opendatacommunities.org/id/metropolitan-district-council/wolverhampton","708251","Total Gas & Power Limited","168002500","74.47","Gas","190447412","13/04/2018","Schools","Fallings Park Primary School","R2101"
"Wolverhampton City Council","http://opendatacommunities.org/id/metropolitan-district-council/wolverhampton","708251","Total Gas & Power Limited","167753800","452.68","Gas","190447310","13/04/2018","Schools","Loxdale Primary School","R2101"
"Wolverhampton City Council","http://opendatacommunities.org/id/metropolitan-district-council/wolverhampton","708251","Total Gas & Power Limited","167754295","449.89","Gas","190447358","13/04/2018","Schools","St Patrick�s Catholic Primary School","R2101"
"Wolverhampton City Council","http://opendatacommunities.org/id/metropolitan-district-council/wolverhampton","708251","Total Gas & Power Limited","167754064","26.04","Gas","190447336","13/04/2018","Corporate Asset Management","Central Utilities to Recharge","R2101"
"Wolverhampton City Council","http://opendatacommunities.org/id/metropolitan-district-council/wolverhampton","708251","Total Gas & Power Limited","168002301","39.16","Gas","190447392","13/04/2018","Corporate Asset Management","Central Utilities to Recharge","R2101"
"Wolverhampton City Council","http://opendatacommunities.org/id/metropolitan-district-council/wolverhampton","708251","Total Gas & Power Limited","168002796","235.83","Gas","190447441","13/04/2018","Corporate Asset Management","Central Utilities to Recharge","R2101"
"Wolverhampton City Council","http://opendatacommunities.org/id/metropolitan-district-council/wolverhampton","708251","Total Gas & Power Limited","168002719","84.93","Gas","190447433","13/04/2018","Corporate Asset Management","Central Utilities to Recharge","R2101"
"Wolverhampton City Council","http://opendatacommunities.org/id/metropolitan-district-council/wolverhampton","708251","Total Gas & Power Limited","168002697","499.24","Gas","190447431","13/04/2018","Schools","St Alban�s Church of England Primary School","R2101"
"Wolverhampton City Council","http://opendatacommunities.org/id/metropolitan-district-council/wolverhampton","708251","Total Gas & Power Limited","167754328","302.83","Gas","190447361","13/04/2018","Corporate Asset Management","Central Utilities to Recharge","R2101"
"Wolverhampton City Council","http://opendatacommunities.org/id/metropolitan-district-council/wolverhampton","708251","Total Gas & Power Limited","168002191","193.67","Gas","190447381","13/04/2018","Corporate Asset Management","Central Utilities to Recharge","R2101"
"Wolverhampton City Council","http://opendatacommunities.org/id/metropolitan-district-council/wolverhampton","708251","Total Gas & Power Limited","168002257","229.47","Gas","190447387","13/04/2018","Corporate Asset Management","Central Utilities to Recharge","R2101"
"Wolverhampton City Council","http://opendatacommunities.org/id/metropolitan-district-council/wolverhampton","708251","Total Gas & Power Limited","168003247","39.16","Gas","190447484","13/04/2018","Corporate Asset Management","Central Utilities to Recharge","R2101"
"Wolverhampton City Council","http://opendatacommunities.org/id/metropolitan-district-council/wolverhampton","708251","Total Gas & Power Limited","168003401","211.45","Gas","190447498","13/04/2018","Corporate Asset Management","Central Utilities to Recharge","R2101"
"Wolverhampton City Council","http://opendatacommunities.org/id/metropolitan-district-council/wolverhampton","708251","Total Gas & Power Limited","167753900","284.34","Gas","190447320","13/04/2018","Corporate Asset Management","Central Utilities to Recharge","R2101"
"Wolverhampton City Council","http://opendatacommunities.org/id/metropolitan-district-council/wolverhampton","708251","Total Gas & Power Limited","168002917","26.04","Gas","190447453","13/04/2018","Corporate Asset Management","Central Utilities to Recharge","R2101"
"Wolverhampton City Council","http://opendatacommunities.org/id/metropolitan-district-council/wolverhampton","708251","Total Gas & Power Limited","143877277","1,280.41","Electricity","190447026","11/04/2018","Schools","Oak Meadow Primary School","R2100"
"Wolverhampton City Council","http://opendatacommunities.org/id/metropolitan-district-council/wolverhampton","708251","Total Gas & Power Limited","145783016","1,148.99","Electricity","190447025","11/04/2018","Schools","Oak Meadow Primary School","R2100"
"Wolverhampton City Council","http://opendatacommunities.org/id/metropolitan-district-council/wolverhampton","708251","Total Gas & Power Limited","157521919","421.66","Electricity","190447031","11/04/2018","Schools","Castlecroft Primary School","R2100"
"Wolverhampton City Council","http://opendatacommunities.org/id/metropolitan-district-council/wolverhampton","708251","Total Gas & Power Limited","144079787","7.41","Electricity","190447034","11/04/2018","Housing Revenue Account","Hostels / Outreach","R2100"
"Wolverhampton City Council","http://opendatacommunities.org/id/metropolitan-district-council/wolverhampton","708251","Total Gas & Power Limited","154469243","735.58","Electricity","190447040","11/04/2018","Facilities Management","Management of Vacant Properties","R2100"
"Wolverhampton City Council","http://opendatacommunities.org/id/metropolitan-district-council/wolverhampton","708251","Total Gas & Power Limited","153797506","371.49","Electricity","190447039","11/04/2018","Corporate Asset Management","Central Utilities to Recharge","R2100"
"Wolverhampton City Council","http://opendatacommunities.org/id/metropolitan-district-council/wolverhampton","708251","Total Gas & Power Limited","157589217","1,184.52","Electricity","190447038","11/04/2018","Schools","Rakegate Primary School","R2100"
"Wolverhampton City Council","http://opendatacommunities.org/id/metropolitan-district-council/wolverhampton","708251","Total Gas & Power Limited","167753646","368.99","Gas","190447294","13/04/2018","Corporate Asset Management","Central Utilities to Recharge","R2101"
"Wolverhampton City Council","http://opendatacommunities.org/id/metropolitan-district-council/wolverhampton","708251","Total Gas & Power Limited","167753921","3,973.52","Gas","190447322","13/04/2018","Corporate Asset Management","Central Utilities to Recharge","R2101"
"Wolverhampton City Council","http://opendatacommunities.org/id/metropolitan-district-council/wolverhampton","708251","Total Gas & Power Limited","168002334","115.06","Gas","190447395","13/04/2018","Corporate Asset Management","Central Utilities to Recharge","R2101"
"Wolverhampton City Council","http://opendatacommunities.org/id/metropolitan-district-council/wolverhampton","708251","Total Gas & Power Limited","168002807","175.15","Gas","190447442","13/04/2018","Schools","Bushbury Hill Primary School","R2101"
"Wolverhampton City Council","http://opendatacommunities.org/id/metropolitan-district-council/wolverhampton","708251","Total Gas & Power Limited","167753833","1,948.18","Gas","190447313","13/04/2018","Corporate Asset Management","Central Utilities to Recharge","R2101"
"Wolverhampton City Council","http://opendatacommunities.org/id/metropolitan-district-council/wolverhampton","708251","Total Gas & Power Limited","167753855","1,637.18","Gas","190447315","13/04/2018","Schools","St Andrews Church of England Primary School","R2101"
"Wolverhampton City Council","http://opendatacommunities.org/id/metropolitan-district-council/wolverhampton","708251","Total Gas & Power Limited","167753811","8,536.90","Gas","190447311","13/04/2018","Corporate Asset Management","Central Utilities to Recharge","R2101"
"Wolverhampton City Council","http://opendatacommunities.org/id/metropolitan-district-council/wolverhampton","708251","Total Gas & Power Limited","167753680","1,347.93","Gas","190447298","13/04/2018","Schools","Dovecotes Primary School","R2101"
"Wolverhampton City Council","http://opendatacommunities.org/id/metropolitan-district-council/wolverhampton","708251","Total Gas & Power Limited","168002521","155.42","Gas","190447414","13/04/2018","Corporate Asset Management","Central Utilities to Recharge","R2101"
"Wolverhampton City Council","http://opendatacommunities.org/id/metropolitan-district-council/wolverhampton","708251","Total Gas & Power Limited","167753569","5,066.45","Gas","190447286","13/04/2018","Corporate Asset Management","Central Utilities to Recharge","R2101"
"Wolverhampton City Council","http://opendatacommunities.org/id/metropolitan-district-council/wolverhampton","708251","Total Gas & Power Limited","168002180","117.70","Gas","190447380","13/04/2018","Corporate Asset Management","Central Utilities to Recharge","R2101"
"Wolverhampton City Council","http://opendatacommunities.org/id/metropolitan-district-council/wolverhampton","708251","Total Gas & Power Limited","168002818","293.16","Gas","190447443","13/04/2018","Schools","Oak Meadow Primary School","R2101"
"Wolverhampton City Council","http://opendatacommunities.org/id/metropolitan-district-council/wolverhampton","708251","Total Gas & Power Limited","168002290","135.10","Gas","190447391","13/04/2018","Corporate Asset Management","Central Utilities to Recharge","R2101"
"Wolverhampton City Council","http://opendatacommunities.org/id/metropolitan-district-council/wolverhampton","708251","Total Gas & Power Limited","168002906","52.45","Gas","190447452","13/04/2018","Schools","Whitgreave Infant School","R2101"
"Wolverhampton City Council","http://opendatacommunities.org/id/metropolitan-district-council/wolverhampton","708251","Total Gas & Power Limited","167753624","403.82","Gas","190447292","13/04/2018","Schools","Christ Church (Church of England) Junior School","R2101"
"Wolverhampton City Council","http://opendatacommunities.org/id/metropolitan-district-council/wolverhampton","708251","Total Gas & Power Limited","166070613C","-826.02","Gas","190450865","25/04/2018","Corporate Asset Management","Central Utilities to Recharge","R2101"
"Wolverhampton City Council","http://opendatacommunities.org/id/metropolitan-district-council/wolverhampton","708251","Total Gas & Power Limited","168351023","3,428.50","Gas","190450867","25/04/2018","Corporate Asset Management","Central Utilities to Recharge","R2101"
"Wolverhampton City Council","http://opendatacommunities.org/id/metropolitan-district-council/wolverhampton","708251","Total Gas & Power Limited","168002939","62.78","Gas","190447455","13/04/2018","Schools","Merridale Primary School","R2101"
"Wolverhampton City Council","http://opendatacommunities.org/id/metropolitan-district-council/wolverhampton","708251","Total Gas & Power Limited","168002312","68.69","Gas","190447393","13/04/2018","Schools","Wodensfield Primary School","R2101"
"Wolverhampton City Council","http://opendatacommunities.org/id/metropolitan-district-council/wolverhampton","708251","Total Gas & Power Limited","168003203","59.60","Gas","190447480","13/04/2018","Schools","Claregate Primary School","R2101"
"Wolverhampton City Council","http://opendatacommunities.org/id/metropolitan-district-council/wolverhampton","708251","Total Gas & Power Limited","168002389","65.99","Gas","190447400","13/04/2018","Corporate Asset Management","Central Utilities to Recharge","R2101"
"Wolverhampton City Council","http://opendatacommunities.org/id/metropolitan-district-council/wolverhampton","708251","Total Gas & Power Limited","163805108","81.27","Electricity","190441984","04/04/2018","Corporate Asset Management","Central Utilities to Recharge","R2100"
"Wolverhampton City Council","http://opendatacommunities.org/id/metropolitan-district-council/wolverhampton","708251","Total Gas & Power Limited","157488292","77.35","Electricity","190441986","04/04/2018","Corporate Asset Management","Central Utilities to Recharge","R2100"
"Wolverhampton City Council","http://opendatacommunities.org/id/metropolitan-district-council/wolverhampton","708251","Total Gas & Power Limited","164922972","1,466.57","Electricity","190441985","04/04/2018","Schools","Oak Meadow Primary School","R2100"
"Wolverhampton City Council","http://opendatacommunities.org/id/metropolitan-district-council/wolverhampton","708251","Total Gas & Power Limited","155798989a","-28.84","Gas","190442008","04/04/2018","Facilities Management","Management of Vacant Properties","R2101"
"Wolverhampton City Council","http://opendatacommunities.org/id/metropolitan-district-council/wolverhampton","708251","Total Gas & Power Limited","166070437a","214.82","Gas","190442016","04/04/2018","Corporate Asset Management","Central Utilities to Recharge","R2101"
"Wolverhampton City Council","http://opendatacommunities.org/id/metropolitan-district-council/wolverhampton","708251","Total Gas & Power Limited","166123061a","79.15","Gas","190442082","04/04/2018","Corporate Asset Management","Central Utilities to Recharge","R2101"
"Wolverhampton City Council","http://opendatacommunities.org/id/metropolitan-district-council/wolverhampton","708251","Total Gas & Power Limited","166123336a","23.52","Gas","190442107","04/04/2018","Corporate Asset Management","Central Utilities to Recharge","R2101"
"Wolverhampton City Council","http://opendatacommunities.org/id/metropolitan-district-council/wolverhampton","708251","Total Gas & Power Limited","166070558a","175.67","Gas","190442026","04/04/2018","Corporate Asset Management","Central Utilities to Recharge","R2101"
"Wolverhampton City Council","http://opendatacommunities.org/id/metropolitan-district-council/wolverhampton","708251","Total Gas & Power Limited","166123314a","543.85","Gas","190442105","04/04/2018","Schools","Woodthorne Primary School","R2101"
"Wolverhampton City Council","http://opendatacommunities.org/id/metropolitan-district-council/wolverhampton","708251","Total Gas & Power Limited","166070459a","31.90","Gas","190442018","04/04/2018","Corporate Asset Management","Central Utilities to Recharge","R2101"
"Wolverhampton City Council","http://opendatacommunities.org/id/metropolitan-district-council/wolverhampton","708251","Total Gas & Power Limited","166123270a","50.82","Gas","190442101","04/04/2018","Schools","Long Knowle Primary School","R2101"
"Wolverhampton City Council","http://opendatacommunities.org/id/metropolitan-district-council/wolverhampton","708251","Total Gas & Power Limited","166123138a","35.53","Gas","190442089","04/04/2018","Schools","Warstones Primary School","R2101"
"Wolverhampton City Council","http://opendatacommunities.org/id/metropolitan-district-council/wolverhampton","708251","Total Gas & Power Limited","166070602a","35.37","Gas","190442030","04/04/2018","Schools","Bushbury Nursery","R2101"
"Wolverhampton City Council","http://opendatacommunities.org/id/metropolitan-district-council/wolverhampton","708251","Total Gas & Power Limited","166123171a","1,090.10","Gas","190442093","04/04/2018","Schools","Fallings Park Primary School","R2101"
"Wolverhampton City Council","http://opendatacommunities.org/id/metropolitan-district-council/wolverhampton","708251","Total Gas & Power Limited","166123149a","58.19","Gas","190442090","04/04/2018","Schools","St Anthony�s Catholic Primary School","R2101"
"Wolverhampton City Council","http://opendatacommunities.org/id/metropolitan-district-council/wolverhampton","708251","Total Gas & Power Limited","159845834Ca","-33.51","Gas","190442010","04/04/2018","Facilities Management","Management of Vacant Properties","R2101"
"Wolverhampton City Council","http://opendatacommunities.org/id/metropolitan-district-council/wolverhampton","708251","Total Gas & Power Limited","162628251Ca","-40.93","Gas","190442012","04/04/2018","Facilities Management","Management of Vacant Properties","R2101"
"Wolverhampton City Council","http://opendatacommunities.org/id/metropolitan-district-council/wolverhampton","708251","Total Gas & Power Limited","166123589a","70.23","Gas","190442131","04/04/2018","Corporate Asset Management","Central Utilities to Recharge","R2101"
"Wolverhampton City Council","http://opendatacommunities.org/id/metropolitan-district-council/wolverhampton","708251","Total Gas & Power Limited","166078665a","1,643.53","Gas","190442049","04/04/2018","Schools","St Andrews Church of England Primary School","R2101"
"Wolverhampton City Council","http://opendatacommunities.org/id/metropolitan-district-council/wolverhampton","708251","Total Gas & Power Limited","166123215a","47.71","Gas","190442096","04/04/2018","Schools","St Thomas� Church of England Primary School","R2101"
"Wolverhampton City Council","http://opendatacommunities.org/id/metropolitan-district-council/wolverhampton","708251","Total Gas & Power Limited","166078710a","7,044.36","Gas","190442054","04/04/2018","Corporate Asset Management","Central Utilities to Recharge","R2101"
"Wolverhampton City Council","http://opendatacommunities.org/id/metropolitan-district-council/wolverhampton","708251","Total Gas & Power Limited","166123193a","45.24","Gas","190442095","04/04/2018","Schools","St Michael�s Church of England Primary School","R2101"
"Wolverhampton City Council","http://opendatacommunities.org/id/metropolitan-district-council/wolverhampton","708251","Total Gas & Power Limited","166123590a","104.89","Gas","190442132","04/04/2018","Corporate Asset Management","Central Utilities to Recharge","R2101"
"Wolverhampton City Council","http://opendatacommunities.org/id/metropolitan-district-council/wolverhampton","708251","Total Gas & Power Limited","166123810a","140.54","Gas","190442154","04/04/2018","Schools","Ashmore Park Nursery","R2101"
"Wolverhampton City Council","http://opendatacommunities.org/id/metropolitan-district-council/wolverhampton","708251","Total Gas & Power Limited","166078820a","885.90","Gas","190442064","04/04/2018","Corporate Asset Management","Central Utilities to Recharge","R2101"
"Wolverhampton City Council","http://opendatacommunities.org/id/metropolitan-district-council/wolverhampton","708251","Total Gas & Power Limited","166078863a","635.72","Gas","190442068","04/04/2018","Schools","Bilston Church of England Primary School","R2101"
"Wolverhampton City Council","http://opendatacommunities.org/id/metropolitan-district-council/wolverhampton","708251","Total Gas & Power Limited","166078896a","599.41","Gas","190442071","04/04/2018","Schools","Springvale Primary School","R2101"
"Wolverhampton City Council","http://opendatacommunities.org/id/metropolitan-district-council/wolverhampton","708251","Total Gas & Power Limited","166123864a","76.98","Gas","190442159","04/04/2018","Schools","Eastfield Nursery","R2101"
"Wolverhampton City Council","http://opendatacommunities.org/id/metropolitan-district-council/wolverhampton","708251","Total Gas & Power Limited","166078819a","1,532.16","Gas","190442063","04/04/2018","Schools","Penn Hall Special School","R2101"
"Wolverhampton City Council","http://opendatacommunities.org/id/metropolitan-district-council/wolverhampton","708251","Total Gas & Power Limited","166078808a","3,006.84","Gas","190442062","04/04/2018","Corporate Asset Management","Central Utilities to Recharge","R2101"
"Wolverhampton City Council","http://opendatacommunities.org/id/metropolitan-district-council/wolverhampton","708251","Total Gas & Power Limited","166123677a","23.52","Gas","190442140","04/04/2018","Corporate Asset Management","Central Utilities to Recharge","R2101"
"Wolverhampton City Council","http://opendatacommunities.org/id/metropolitan-district-council/wolverhampton","708251","Total Gas & Power Limited","166078731a","843.12","Gas","190442056","04/04/2018","Corporate Asset Management","Central Utilities to Recharge","R2101"
"Wolverhampton City Council","http://opendatacommunities.org/id/metropolitan-district-council/wolverhampton","708251","Total Gas & Power Limited","166123700a","113.10","Gas","190442143","04/04/2018","Schools","Hill Avenue Primary School","R2101"
"Wolverhampton City Council","http://opendatacommunities.org/id/metropolitan-district-council/wolverhampton","708251","Total Gas & Power Limited","166123666a","478.57","Gas","190442139","04/04/2018","Corporate Asset Management","Central Utilities to Recharge","R2101"
"Wolverhampton City Council","http://opendatacommunities.org/id/metropolitan-district-council/wolverhampton","708251","Total Gas & Power Limited","166078918a","461.96","Gas","190442073","04/04/2018","Schools","Merridale Primary School","R2101"
"Wolverhampton City Council","http://opendatacommunities.org/id/metropolitan-district-council/wolverhampton","708251","Total Gas & Power Limited","166123831a","35.37","Gas","190442156","04/04/2018","Corporate Asset Management","Central Utilities to Recharge","R2101"
"Wolverhampton City Council","http://opendatacommunities.org/id/metropolitan-district-council/wolverhampton","708251","Total Gas & Power Limited","166123842a","163.26","Gas","190442157","04/04/2018","Corporate Asset Management","Central Utilities to Recharge","R2101"
"Wolverhampton City Council","http://opendatacommunities.org/id/metropolitan-district-council/wolverhampton","708251","Total Gas & Power Limited","166123820a","176.48","Gas","190442155","04/04/2018","Corporate Asset Management","Central Utilities to Recharge","R2101"
"Wolverhampton City Council","http://opendatacommunities.org/id/metropolitan-district-council/wolverhampton","708251","Total Gas & Power Limited","166123886a","311.40","Gas","190442161","04/04/2018","Facilities Management","Management of Vacant Properties","R2101"
"Wolverhampton City Council","http://opendatacommunities.org/id/metropolitan-district-council/wolverhampton","708251","Total Gas & Power Limited","166123853a","69.37","Gas","190442158","04/04/2018","Corporate Asset Management","Central Utilities to Recharge","R2101"
"Wolverhampton City Council","http://opendatacommunities.org/id/metropolitan-district-council/wolverhampton","708251","Total Gas & Power Limited","166078962a","4,896.30","Gas","190442078","04/04/2018","Corporate Asset Management","Central Utilities to Recharge","R2101"
"Wolverhampton City Council","http://opendatacommunities.org/id/metropolitan-district-council/wolverhampton","708251","Total Gas & Power Limited","166124030a","255.86","Gas","190442176","04/04/2018","Housing Revenue Account","Amounts to be Settled with Wolverhampton Homes","R2101"
"Wolverhampton City Council","http://opendatacommunities.org/id/metropolitan-district-council/wolverhampton","708251","Total Gas & Power Limited","166124205a","49.19","Gas","190442193","04/04/2018","Corporate Asset Management","Central Utilities to Recharge","R2101"
"Wolverhampton City Council","http://opendatacommunities.org/id/metropolitan-district-council/wolverhampton","708251","Total Gas & Power Limited","166123941a","166.13","Gas","190442167","04/04/2018","Schools","Christ Church (Tettenhall Wood) Infant School","R2101"
"Wolverhampton City Council","http://opendatacommunities.org/id/metropolitan-district-council/wolverhampton","708251","Total Gas & Power Limited","166124062a","170.31","Gas","190442179","04/04/2018","Corporate Asset Management","Central Utilities to Recharge","R2101"
"Wolverhampton City Council","http://opendatacommunities.org/id/metropolitan-district-council/wolverhampton","708251","Total Gas & Power Limited","166124128a","106.72","Gas","190442185","04/04/2018","Corporate Asset Management","Central Utilities to Recharge","R2101"
"Wolverhampton City Council","http://opendatacommunities.org/id/metropolitan-district-council/wolverhampton","708251","Total Gas & Power Limited","166124150a","968.51","Gas","190442188","04/04/2018","Corporate Asset Management","Central Utilities to Recharge","R2101"
"Wolverhampton City Council","http://opendatacommunities.org/id/metropolitan-district-council/wolverhampton","708251","Total Gas & Power Limited","166124084a","403.93","Gas","190442181","04/04/2018","Schools","Whitgreave Infant School","R2101"
"Wolverhampton City Council","http://opendatacommunities.org/id/metropolitan-district-council/wolverhampton","708251","Total Gas & Power Limited","166124073a","412.71","Gas","190442180","04/04/2018","Schools","Holy Trinity Catholic Primary School","R2101"
"Wolverhampton City Council","http://opendatacommunities.org/id/metropolitan-district-council/wolverhampton","708251","Total Gas & Power Limited","166124282a","3,703.56","Gas","190442201","04/04/2018","Corporate Asset Management","Central Utilities to Recharge","R2101"
"Wolverhampton City Council","http://opendatacommunities.org/id/metropolitan-district-council/wolverhampton","708251","Total Gas & Power Limited","166124381a","343.10","Gas","190442211","04/04/2018","Corporate Asset Management","Central Utilities to Recharge","R2101"
"Wolverhampton City Council","http://opendatacommunities.org/id/metropolitan-district-council/wolverhampton","708251","Total Gas & Power Limited","166124359a","528.73","Gas","190442208","04/04/2018","Corporate Asset Management","Central Utilities to Recharge","R2101"
"Wolverhampton City Council","http://opendatacommunities.org/id/metropolitan-district-council/wolverhampton","708251","Total Gas & Power Limited","166124392a","467.53","Gas","190442212","04/04/2018","Corporate Asset Management","Central Utilities to Recharge","R2101"
"Wolverhampton City Council","http://opendatacommunities.org/id/metropolitan-district-council/wolverhampton","708251","Total Gas & Power Limited","166124568a","23.52","Gas","190442228","04/04/2018","Corporate Asset Management","Central Utilities to Recharge","R2101"
"Wolverhampton City Council","http://opendatacommunities.org/id/metropolitan-district-council/wolverhampton","708251","Total Gas & Power Limited","166124513a","329.41","Gas","190442224","04/04/2018","Corporate Asset Management","Central Utilities to Recharge","R2101"
"Wolverhampton City Council","http://opendatacommunities.org/id/metropolitan-district-council/wolverhampton","708251","Total Gas & Power Limited","166123480a","324.36","Gas","190442121","04/04/2018","Schools","Oak Meadow Primary School","R2101"
"Wolverhampton City Council","http://opendatacommunities.org/id/metropolitan-district-council/wolverhampton","708251","Total Gas & Power Limited","166078544a","568.17","Gas","190442037","04/04/2018","Schools","West Park Primary School","R2101"
"Wolverhampton City Council","http://opendatacommunities.org/id/metropolitan-district-council/wolverhampton","708251","Total Gas & Power Limited","166078566a","2,220.94","Gas","190442039","04/04/2018","Schools","Warstones Primary School","R2101"
"Wolverhampton City Council","http://opendatacommunities.org/id/metropolitan-district-council/wolverhampton","708251","Total Gas & Power Limited","166078577a","3,218.16","Gas","190442040","04/04/2018","Corporate Asset Management","Central Utilities to Recharge","R2101"
"Wolverhampton City Council","http://opendatacommunities.org/id/metropolitan-district-council/wolverhampton","708251","Total Gas & Power Limited","166123534a","997.32","Gas","190442126","04/04/2018","Schools","Bantock Primary School","R2101"
"Wolverhampton City Council","http://opendatacommunities.org/id/metropolitan-district-council/wolverhampton","708251","Total Gas & Power Limited","167753844","6,543.64","Gas","190447314","13/04/2018","Schools","Colton Hills Community School","R2101"
"Wolverhampton City Council","http://opendatacommunities.org/id/metropolitan-district-council/wolverhampton","708251","Total Gas & Power Limited","167753723","3,270.06","Gas","190447302","13/04/2018","Corporate Asset Management","Central Utilities to Recharge","R2101"
"Wolverhampton City Council","http://opendatacommunities.org/id/metropolitan-district-council/wolverhampton","708251","Total Gas & Power Limited","167754350","4,153.36","Gas","190447364","13/04/2018","Corporate Asset Management","Central Utilities to Recharge","R2101"
"Wolverhampton City Council","http://opendatacommunities.org/id/metropolitan-district-council/wolverhampton","708251","Total Gas & Power Limited","168002830","172.53","Gas","190447445","13/04/2018","Corporate Asset Management","Central Utilities to Recharge","R2101"
"Wolverhampton City Council","http://opendatacommunities.org/id/metropolitan-district-council/wolverhampton","708251","Total Gas & Power Limited","168002554","164.16","Gas","190447417","13/04/2018","Corporate Asset Management","Central Utilities to Recharge","R2101"
"Wolverhampton City Council","http://opendatacommunities.org/id/metropolitan-district-council/wolverhampton","708251","Total Gas & Power Limited","167753877","1,406.98","Gas","190447317","13/04/2018","Corporate Asset Management","Central Utilities to Recharge","R2101"
"Wolverhampton City Council","http://opendatacommunities.org/id/metropolitan-district-council/wolverhampton","708251","Total Gas & Power Limited","168002730","2,905.44","Gas","190447435","13/04/2018","Schools","Tettenhall Wood Special School","R2101"
"Wolverhampton City Council","http://opendatacommunities.org/id/metropolitan-district-council/wolverhampton","708251","Total Gas & Power Limited","168002587","130.47","Gas","190447420","13/04/2018","Schools","Bilston Church of England Primary School","R2101"
"Wolverhampton City Council","http://opendatacommunities.org/id/metropolitan-district-council/wolverhampton","708251","Total Gas & Power Limited","168002356","139.72","Gas","190447397","13/04/2018","Schools","Christ Church (Tettenhall Wood) Infant School","R2101"
"Wolverhampton City Council","http://opendatacommunities.org/id/metropolitan-district-council/wolverhampton","708251","Total Gas & Power Limited","168002455","165.67","Gas","190447407","13/04/2018","Corporate Asset Management","Central Utilities to Recharge","R2101"
"Wolverhampton City Council","http://opendatacommunities.org/id/metropolitan-district-council/wolverhampton","708251","Total Gas & Power Limited","168003071","53.43","Gas","190447468","13/04/2018","Schools","St Thomas� Church of England Primary School","R2101"
"Wolverhampton City Council","http://opendatacommunities.org/id/metropolitan-district-council/wolverhampton","708251","Total Gas & Power Limited","168002675","1,707.45","Gas","190447429","13/04/2018","Corporate Asset Management","Central Utilities to Recharge","R2101"
"Wolverhampton City Council","http://opendatacommunities.org/id/metropolitan-district-council/wolverhampton","708251","Total Gas & Power Limited","167754427","312.40","Gas","190447371","13/04/2018","Corporate Asset Management","Central Utilities to Recharge","R2101"
"Wolverhampton City Council","http://opendatacommunities.org/id/metropolitan-district-council/wolverhampton","708251","Total Gas & Power Limited","168002884C","-487.72","Gas","190450863","25/04/2018","Schools","Penn Hall Special School","R2101"
"Wolverhampton City Council","http://opendatacommunities.org/id/metropolitan-district-council/wolverhampton","708251","Total Gas & Power Limited","167754119","374.92","Gas","190447340","13/04/2018","Corporate Asset Management","Central Utilities to Recharge","R2101"
"Wolverhampton City Council","http://opendatacommunities.org/id/metropolitan-district-council/wolverhampton","708251","Total Gas & Power Limited","168003027","57.37","Gas","190447463","13/04/2018","Schools","Long Knowle Primary School","R2101"
"Wolverhampton City Council","http://opendatacommunities.org/id/metropolitan-district-council/wolverhampton","708251","Total Gas & Power Limited","168002323","54.09","Gas","190447394","13/04/2018","Corporate Asset Management","Central Utilities to Recharge","R2101"
"Wolverhampton City Council","http://opendatacommunities.org/id/metropolitan-district-council/wolverhampton","708251","Total Gas & Power Limited","168002620","26.04","Gas","190447424","13/04/2018","Corporate Asset Management","Central Utilities to Recharge","R2101"
"Wolverhampton City Council","http://opendatacommunities.org/id/metropolitan-district-council/wolverhampton","708251","Total Gas & Power Limited","162614028C","-65.65","Gas","190441973","04/04/2018","Schools","D�Eyncourt Primary School","R2101"
"Wolverhampton City Council","http://opendatacommunities.org/id/metropolitan-district-council/wolverhampton","708251","Total Gas & Power Limited","161824240","1,461.31","Electricity","190441982","04/04/2018","Schools","Oak Meadow Primary School","R2100"
"Wolverhampton City Council","http://opendatacommunities.org/id/metropolitan-district-council/wolverhampton","708251","Total Gas & Power Limited","166123105a","61.35","Gas","190442086","04/04/2018","Schools","Wood End Primary School","R2101"
"Wolverhampton City Council","http://opendatacommunities.org/id/metropolitan-district-council/wolverhampton","708251","Total Gas & Power Limited","166123094a","35.37","Gas","190442085","04/04/2018","Corporate Asset Management","Central Utilities to Recharge","R2101"
"Wolverhampton City Council","http://opendatacommunities.org/id/metropolitan-district-council/wolverhampton","708251","Total Gas & Power Limited","166123072a","30.51","Gas","190442083","04/04/2018","Corporate Asset Management","Central Utilities to Recharge","R2101"
"Wolverhampton City Council","http://opendatacommunities.org/id/metropolitan-district-council/wolverhampton","708251","Total Gas & Power Limited","157421335Ca","-29.88","Gas","190442009","04/04/2018","Facilities Management","Management of Vacant Properties","R2101"
"Wolverhampton City Council","http://opendatacommunities.org/id/metropolitan-district-council/wolverhampton","708251","Total Gas & Power Limited","166070514a","23.52","Gas","190442022","04/04/2018","Schools","Trinity Church of England Primary School","R2101"
"Wolverhampton City Council","http://opendatacommunities.org/id/metropolitan-district-council/wolverhampton","708251","Total Gas & Power Limited","166070492a","93.13","Gas","190442020","04/04/2018","Corporate Asset Management","Central Utilities to Recharge","R2101"
"Wolverhampton City Council","http://opendatacommunities.org/id/metropolitan-district-council/wolverhampton","708251","Total Gas & Power Limited","166123325a","71.88","Gas","190442106","04/04/2018","Schools","Loxdale Primary School","R2101"
"Wolverhampton City Council","http://opendatacommunities.org/id/metropolitan-district-council/wolverhampton","708251","Total Gas & Power Limited","166123358a","50.50","Gas","190442108","04/04/2018","Schools","Stowheath Primary School","R2101"
"Wolverhampton City Council","http://opendatacommunities.org/id/metropolitan-district-council/wolverhampton","708251","Total Gas & Power Limited","166070547a","51.65","Gas","190442025","04/04/2018","Schools","Uplands Junior School","R2101"
"Wolverhampton City Council","http://opendatacommunities.org/id/metropolitan-district-council/wolverhampton","708251","Total Gas & Power Limited","161355276Ca","-37.35","Gas","190442011","04/04/2018","Facilities Management","Management of Vacant Properties","R2101"
"Wolverhampton City Council","http://opendatacommunities.org/id/metropolitan-district-council/wolverhampton","708251","Total Gas & Power Limited","166070569a","269.51","Gas","190442027","04/04/2018","Corporate Asset Management","Central Utilities to Recharge","R2101"
"Wolverhampton City Council","http://opendatacommunities.org/id/metropolitan-district-council/wolverhampton","708251","Total Gas & Power Limited","166070591a","80.44","Gas","190442029","04/04/2018","Corporate Asset Management","Central Utilities to Recharge","R2101"
"Wolverhampton City Council","http://opendatacommunities.org/id/metropolitan-district-council/wolverhampton","708251","Total Gas & Power Limited","166078500a","545.81","Gas","190442033","04/04/2018","Corporate Asset Management","Central Utilities to Recharge","R2101"
"Wolverhampton City Council","http://opendatacommunities.org/id/metropolitan-district-council/wolverhampton","708251","Total Gas & Power Limited","166070624a","518.95","Gas","190442032","04/04/2018","Corporate Asset Management","Central Utilities to Recharge","R2101"
"Wolverhampton City Council","http://opendatacommunities.org/id/metropolitan-district-council/wolverhampton","708251","Total Gas & Power Limited","165743297a","199.20","Gas","190442015","04/04/2018","Corporate Asset Management","Central Utilities to Recharge","R2101"
"Wolverhampton City Council","http://opendatacommunities.org/id/metropolitan-district-council/wolverhampton","708251","Total Gas & Power Limited","166078654a","2,680.22","Gas","190442048","04/04/2018","Schools","Stowheath Primary School","R2101"
"Wolverhampton City Council","http://opendatacommunities.org/id/metropolitan-district-council/wolverhampton","708251","Total Gas & Power Limited","166078698a","1,911.21","Gas","190442052","04/04/2018","Corporate Asset Management","Central Utilities to Recharge","R2101"
"Wolverhampton City Council","http://opendatacommunities.org/id/metropolitan-district-council/wolverhampton","708251","Total Gas & Power Limited","166078676a","6,352.61","Gas","190442050","04/04/2018","Schools","Colton Hills Community School","R2101"
"Wolverhampton City Council","http://opendatacommunities.org/id/metropolitan-district-council/wolverhampton","708251","Total Gas & Power Limited","166078709a","748.25","Gas","190442053","04/04/2018","Schools","Long Knowle Primary School","R2101"
"Wolverhampton City Council","http://opendatacommunities.org/id/metropolitan-district-council/wolverhampton","708251","Total Gas & Power Limited","166123776a","155.65","Gas","190442150","04/04/2018","Corporate Asset Management","Central Utilities to Recharge","R2101"
"Wolverhampton City Council","http://opendatacommunities.org/id/metropolitan-district-council/wolverhampton","708251","Total Gas & Power Limited","166078841a","1,284.23","Gas","190442066","04/04/2018","Schools","Dovecotes Primary School","R2101"
"Wolverhampton City Council","http://opendatacommunities.org/id/metropolitan-district-council/wolverhampton","708251","Total Gas & Power Limited","166123798a","71.23","Gas","190442152","04/04/2018","Schools","Fallings Park Primary School","R2101"
"Wolverhampton City Council","http://opendatacommunities.org/id/metropolitan-district-council/wolverhampton","708251","Total Gas & Power Limited","166123721a","111.14","Gas","190442145","04/04/2018","Corporate Asset Management","Central Utilities to Recharge","R2101"
"Wolverhampton City Council","http://opendatacommunities.org/id/metropolitan-district-council/wolverhampton","708251","Total Gas & Power Limited","166078753a","686.50","Gas","190442058","04/04/2018","Schools","Westacre Infant School","R2101"
"Wolverhampton City Council","http://opendatacommunities.org/id/metropolitan-district-council/wolverhampton","708251","Total Gas & Power Limited","166078907a","390.10","Gas","190442072","04/04/2018","Schools","Christ Church (Church of England) Junior School","R2101"
"Wolverhampton City Council","http://opendatacommunities.org/id/metropolitan-district-council/wolverhampton","708251","Total Gas & Power Limited","166078797a","3,924.08","Gas","190442061","04/04/2018","Corporate Asset Management","Central Utilities to Recharge","R2101"
"Wolverhampton City Council","http://opendatacommunities.org/id/metropolitan-district-council/wolverhampton","708251","Total Gas & Power Limited","166123710a","27.80","Gas","190442144","04/04/2018","Schools","Bilston Church of England Primary School","R2101"
"Wolverhampton City Council","http://opendatacommunities.org/id/metropolitan-district-council/wolverhampton","708251","Total Gas & Power Limited","166078930a","97.61","Gas","190442075","04/04/2018","Corporate Asset Management","Central Utilities to Recharge","R2101"
"Wolverhampton City Council","http://opendatacommunities.org/id/metropolitan-district-council/wolverhampton","708251","Total Gas & Power Limited","166123875a","59.38","Gas","190442160","04/04/2018","Corporate Asset Management","Central Utilities to Recharge","R2101"
"Wolverhampton City Council","http://opendatacommunities.org/id/metropolitan-district-council/wolverhampton","708251","Total Gas & Power Limited","166123908a","56.09","Gas","190442163","04/04/2018","Schools","Merridale Primary School","R2101"
"Wolverhampton City Council","http://opendatacommunities.org/id/metropolitan-district-council/wolverhampton","708251","Total Gas & Power Limited","166123963a","161.67","Gas","190442169","04/04/2018","Corporate Asset Management","Central Utilities to Recharge","R2101"
"Wolverhampton City Council","http://opendatacommunities.org/id/metropolitan-district-council/wolverhampton","708251","Total Gas & Power Limited","166123985a","63.50","Gas","190442171","04/04/2018","Schools","Wodensfield Primary School","R2101"
"Wolverhampton City Council","http://opendatacommunities.org/id/metropolitan-district-council/wolverhampton","708251","Total Gas & Power Limited","166124018a","126.27","Gas","190442174","04/04/2018","Corporate Asset Management","Central Utilities to Recharge","R2101"
"Wolverhampton City Council","http://opendatacommunities.org/id/metropolitan-district-council/wolverhampton","708251","Total Gas & Power Limited","166124249a","582.30","Gas","190442197","04/04/2018","Corporate Asset Management","Central Utilities to Recharge","R2101"
"Wolverhampton City Council","http://opendatacommunities.org/id/metropolitan-district-council/wolverhampton","708251","Total Gas & Power Limited","166124106a","35.37","Gas","190442183","04/04/2018","Facilities Management","Management of Vacant Properties","R2101"
"Wolverhampton City Council","http://opendatacommunities.org/id/metropolitan-district-council/wolverhampton","708251","Total Gas & Power Limited","166124051a","295.30","Gas","190442178","04/04/2018","Corporate Asset Management","Central Utilities to Recharge","R2101"
"Wolverhampton City Council","http://opendatacommunities.org/id/metropolitan-district-council/wolverhampton","708251","Total Gas & Power Limited","166124095a","23.52","Gas","190442182","04/04/2018","Corporate Asset Management","Central Utilities to Recharge","R2101"
"Wolverhampton City Council","http://opendatacommunities.org/id/metropolitan-district-council/wolverhampton","708251","Total Gas & Power Limited","166124140a","370.44","Gas","190442187","04/04/2018","Corporate Asset Management","Central Utilities to Recharge","R2101"
"Wolverhampton City Council","http://opendatacommunities.org/id/metropolitan-district-council/wolverhampton","708251","Total Gas & Power Limited","166124117a","175.19","Gas","190442184","04/04/2018","Corporate Asset Management","Central Utilities to Recharge","R2101"
"Wolverhampton City Council","http://opendatacommunities.org/id/metropolitan-district-council/wolverhampton","708251","Total Gas & Power Limited","166124271a","1,330.43","Gas","190442200","04/04/2018","Corporate Asset Management","Central Utilities to Recharge","R2101"
"Wolverhampton City Council","http://opendatacommunities.org/id/metropolitan-district-council/wolverhampton","708251","Total Gas & Power Limited","166124304a","110.41","Gas","190442203","04/04/2018","Corporate Asset Management","Central Utilities to Recharge","R2101"
"Wolverhampton City Council","http://opendatacommunities.org/id/metropolitan-district-council/wolverhampton","708251","Total Gas & Power Limited","166124447a","110.41","Gas","190442217","04/04/2018","Corporate Asset Management","Central Utilities to Recharge","R2101"
"Wolverhampton City Council","http://opendatacommunities.org/id/metropolitan-district-council/wolverhampton","708251","Total Gas & Power Limited","166124580a","524.08","Gas","190442230","04/04/2018","Corporate Asset Management","Central Utilities to Recharge","R2101"
"Wolverhampton City Council","http://opendatacommunities.org/id/metropolitan-district-council/wolverhampton","708251","Total Gas & Power Limited","166124458a","470.51","Gas","190442218","04/04/2018","Corporate Asset Management","Central Utilities to Recharge","R2101"
"Wolverhampton City Council","http://opendatacommunities.org/id/metropolitan-district-council/wolverhampton","708251","Total Gas & Power Limited","166124469a","593.40","Gas","190442219","04/04/2018","Corporate Asset Management","Central Utilities to Recharge","R2101"
"Wolverhampton City Council","http://opendatacommunities.org/id/metropolitan-district-council/wolverhampton","708251","Total Gas & Power Limited","166123391a","44.91","Gas","190442112","04/04/2018","Schools","Whitgreave Infant School","R2101"
"Wolverhampton City Council","http://opendatacommunities.org/id/metropolitan-district-council/wolverhampton","708251","Total Gas & Power Limited","166123402a","85.67","Gas","190442113","04/04/2018","Schools","Castlecroft Primary School","R2101"
"Wolverhampton City Council","http://opendatacommunities.org/id/metropolitan-district-council/wolverhampton","708251","Total Gas & Power Limited","166078522a","653.91","Gas","190442035","04/04/2018","Schools","Lanesfield Primary School","R2101"
"Wolverhampton City Council","http://opendatacommunities.org/id/metropolitan-district-council/wolverhampton","708251","Total Gas & Power Limited","166123457a","199.50","Gas","190442118","04/04/2018","Corporate Asset Management","Central Utilities to Recharge","R2101"
"Wolverhampton City Council","http://opendatacommunities.org/id/metropolitan-district-council/wolverhampton","708251","Total Gas & Power Limited","166123446a","92.66","Gas","190442117","04/04/2018","Schools","Penn Hall Special School","R2101"
"Wolverhampton City Council","http://opendatacommunities.org/id/metropolitan-district-council/wolverhampton","708251","Total Gas & Power Limited","166123479a","448.71","Gas","190442120","04/04/2018","Corporate Asset Management","Central Utilities to Recharge","R2101"
"Wolverhampton City Council","http://opendatacommunities.org/id/metropolitan-district-council/wolverhampton","708251","Total Gas & Power Limited","166078610a","266.58","Gas","190442044","04/04/2018","Corporate Asset Management","Central Utilities to Recharge","R2101"
"Wolverhampton City Council","http://opendatacommunities.org/id/metropolitan-district-council/wolverhampton","708251","Total Gas & Power Limited","166078632a","1,133.25","Gas","190442046","04/04/2018","Corporate Asset Management","Central Utilities to Recharge","R2101"
"Wolverhampton City Council","http://opendatacommunities.org/id/metropolitan-district-council/wolverhampton","708251","Total Gas & Power Limited","166078643a","1,173.50","Gas","190442047","04/04/2018","Corporate Asset Management","Central Utilities to Recharge","R2101"
"Wolverhampton City Council","http://opendatacommunities.org/id/metropolitan-district-council/wolverhampton","708251","Total Gas & Power Limited","166078555a","566.01","Gas","190442038","04/04/2018","Schools","St Michael�s Church of England Primary School","R2101"
"Wolverhampton City Council","http://opendatacommunities.org/id/metropolitan-district-council/wolverhampton","708251","Total Gas & Power Limited","166123490a","181.41","Gas","190442122","04/04/2018","Schools","Bushbury Hill Primary School","R2101"
"Wolverhampton City Council","http://opendatacommunities.org/id/metropolitan-district-council/wolverhampton","708251","Total Gas & Power Limited","166123512a","23.52","Gas","190442124","04/04/2018","Corporate Asset Management","Central Utilities to Recharge","R2101"
"Wolverhampton City Council","http://opendatacommunities.org/id/metropolitan-district-council/wolverhampton","708251","Total Gas & Power Limited","166123567a","2,782.49","Gas","190442129","04/04/2018","Schools","Tettenhall Wood Special School","R2101"
"Wolverhampton City Council","http://opendatacommunities.org/id/metropolitan-district-council/wolverhampton","708251","Total Gas & Power Limited","167753745","544.84","Gas","190447304","13/04/2018","Corporate Asset Management","Central Utilities to Recharge","R2101"
"Wolverhampton City Council","http://opendatacommunities.org/id/metropolitan-district-council/wolverhampton","708251","Total Gas & Power Limited","167754339","122.24","Gas","190447362","13/04/2018","Corporate Asset Management","Central Utilities to Recharge","R2101"
"Wolverhampton City Council","http://opendatacommunities.org/id/metropolitan-district-council/wolverhampton","708251","Total Gas & Power Limited","168003005","72.14","Gas","190447461","13/04/2018","Schools","Woodthorne Primary School","R2101"
"Wolverhampton City Council","http://opendatacommunities.org/id/metropolitan-district-council/wolverhampton","708251","Total Gas & Power Limited","167753767","952.21","Gas","190447306","13/04/2018","Schools","Castlecroft Primary School","R2101"
"Wolverhampton City Council","http://opendatacommunities.org/id/metropolitan-district-council/wolverhampton","708251","Total Gas & Power Limited","167753756","453.34","Gas","190447305","13/04/2018","Schools","D�Eyncourt Primary School","R2101"
"Wolverhampton City Council","http://opendatacommunities.org/id/metropolitan-district-council/wolverhampton","708251","Total Gas & Power Limited","167754130","622.36","Gas","190447342","13/04/2018","Corporate Asset Management","Central Utilities to Recharge","R2101"
"Wolverhampton City Council","http://opendatacommunities.org/id/metropolitan-district-council/wolverhampton","708251","Total Gas & Power Limited","168003126","893.27","Gas","190447472","13/04/2018","Schools","Fallings Park Primary School","R2101"
"Wolverhampton City Council","http://opendatacommunities.org/id/metropolitan-district-council/wolverhampton","708251","Total Gas & Power Limited","168002829","495.87","Gas","190447444","13/04/2018","Corporate Asset Management","Central Utilities to Recharge","R2101"
"Wolverhampton City Council","http://opendatacommunities.org/id/metropolitan-district-council/wolverhampton","708251","Total Gas & Power Limited","168002686","573.67","Gas","190447430","13/04/2018","Corporate Asset Management","Central Utilities to Recharge","R2101"
"Wolverhampton City Council","http://opendatacommunities.org/id/metropolitan-district-council/wolverhampton","708251","Total Gas & Power Limited","167753822","750.04","Gas","190447312","13/04/2018","Schools","Long Knowle Primary School","R2101"
"Wolverhampton City Council","http://opendatacommunities.org/id/metropolitan-district-council/wolverhampton","708251","Total Gas & Power Limited","167754097","1,045.67","Gas","190447338","13/04/2018","Schools","Claregate Primary School","R2101"
"Wolverhampton City Council","http://opendatacommunities.org/id/metropolitan-district-council/wolverhampton","708251","Total Gas & Power Limited","168002708","108.13","Gas","190447432","13/04/2018","Corporate Asset Management","Central Utilities to Recharge","R2101"
"Wolverhampton City Council","http://opendatacommunities.org/id/metropolitan-district-council/wolverhampton","708251","Total Gas & Power Limited","168002631","544.73","Gas","190447425","13/04/2018","Corporate Asset Management","Central Utilities to Recharge","R2101"
"Wolverhampton City Council","http://opendatacommunities.org/id/metropolitan-district-council/wolverhampton","708251","Total Gas & Power Limited","167753558","652.33","Gas","190447285","13/04/2018","Corporate Asset Management","Central Utilities to Recharge","R2101"
"Wolverhampton City Council","http://opendatacommunities.org/id/metropolitan-district-council/wolverhampton","708251","Total Gas & Power Limited","167754141","1,126.82","Gas","190447343","13/04/2018","Corporate Asset Management","Central Utilities to Recharge","R2101"
"Wolverhampton City Council","http://opendatacommunities.org/id/metropolitan-district-council/wolverhampton","708251","Total Gas & Power Limited","167754229","586.23","Gas","190447351","13/04/2018","Corporate Asset Management","Central Utilities to Recharge","R2101"
"Wolverhampton City Council","http://opendatacommunities.org/id/metropolitan-district-council/wolverhampton","708251","Total Gas & Power Limited","167754262","461.01","Gas","190447355","13/04/2018","Housing Revenue Account","Hostels / Outreach","R2101"
"Wolverhampton City Council","http://opendatacommunities.org/id/metropolitan-district-council/wolverhampton","708251","Total Gas & Power Limited","167753635","550.98","Gas","190447293","13/04/2018","Schools","Springvale Primary School","R2101"
"Wolverhampton City Council","http://opendatacommunities.org/id/metropolitan-district-council/wolverhampton","708251","Total Gas & Power Limited","168002422","69.71","Gas","190447404","13/04/2018","Corporate Asset Management","Central Utilities to Recharge","R2101"
"Wolverhampton City Council","http://opendatacommunities.org/id/metropolitan-district-council/wolverhampton","708251","Total Gas & Power Limited","167754405","395.14","Gas","190447369","13/04/2018","Corporate Asset Management","Central Utilities to Recharge","R2101"
"Wolverhampton City Council","http://opendatacommunities.org/id/metropolitan-district-council/wolverhampton","708251","Total Gas & Power Limited","168003038","39.16","Gas","190447464","13/04/2018","Corporate Asset Management","Central Utilities to Recharge","R2101"
"Wolverhampton City Council","http://opendatacommunities.org/id/metropolitan-district-council/wolverhampton","708251","Total Gas & Power Limited","168002279","279.93","Gas","190447389","13/04/2018","Housing Revenue Account","Amounts to be Settled with Wolverhampton Homes","R2101"
"Wolverhampton City Council","http://opendatacommunities.org/id/metropolitan-district-council/wolverhampton","708251","Total Gas & Power Limited","168003390","86.58","Gas","190447497","13/04/2018","Schools","St Luke�s Church of England Aided Primary School","R2101"
"Wolverhampton City Council","http://opendatacommunities.org/id/metropolitan-district-council/wolverhampton","708251","Total Gas & Power Limited","167753570","78.86","Gas","190447287","13/04/2018","Corporate Asset Management","Central Utilities to Recharge","R2101"
"Wolverhampton City Council","http://opendatacommunities.org/id/metropolitan-district-council/wolverhampton","708251","Total Gas & Power Limited","168002477","221.54","Gas","190447409","13/04/2018","Corporate Asset Management","Central Utilities to Recharge","R2101"
"Wolverhampton City Council","http://opendatacommunities.org/id/metropolitan-district-council/wolverhampton","708251","Total Gas & Power Limited","167753580","26.04","Gas","190447288","13/04/2018","Corporate Asset Management","Central Utilities to Recharge","R2101"
"Wolverhampton City Council","http://opendatacommunities.org/id/metropolitan-district-council/wolverhampton","708251","Total Gas & Power Limited","167754163","204.14","Gas","190447345","13/04/2018","Corporate Asset Management","Central Utilities to Recharge","R2101"
"Wolverhampton City Council","http://opendatacommunities.org/id/metropolitan-district-council/wolverhampton","708251","Total Gas & Power Limited","168003214","33.94","Gas","190447481","13/04/2018","Corporate Asset Management","Central Utilities to Recharge","R2101"
"Wolverhampton City Council","http://opendatacommunities.org/id/metropolitan-district-council/wolverhampton","708251","Total Gas & Power Limited","167754218","31.38","Gas","190447350","13/04/2018","Facilities Management","Management of Vacant Properties","R2101"
"Wolverhampton City Council","http://opendatacommunities.org/id/metropolitan-district-council/wolverhampton","708251","Total Gas & Power Limited","167754207","39.16","Gas","190447349","13/04/2018","Facilities Management","Management of Vacant Properties","R2101"
"Wolverhampton City Council","http://opendatacommunities.org/id/metropolitan-district-council/wolverhampton","708251","Total Gas & Power Limited","168002224","417.40","Gas","190447384","13/04/2018","Schools","Whitgreave Infant School","R2101"
"Wolverhampton City Council","http://opendatacommunities.org/id/metropolitan-district-council/wolverhampton","708251","Total Gas & Power Limited","168002213","26.04","Gas","190447383","13/04/2018","Corporate Asset Management","Central Utilities to Recharge","R2101"
"Wolverhampton City Council","http://opendatacommunities.org/id/metropolitan-district-council/wolverhampton","708251","Total Gas & Power Limited","168003050","61.96","Gas","190447466","13/04/2018","Schools","Wodensfield Primary School","R2101"
"Wolverhampton City Council","http://opendatacommunities.org/id/metropolitan-district-council/wolverhampton","708251","Total Gas & Power Limited","168003270","26.04","Gas","190447487","13/04/2018","Schools","Bushbury Nursery","R2101"
"Wolverhampton City Council","http://opendatacommunities.org/id/metropolitan-district-council/wolverhampton","708251","Total Gas & Power Limited","141921114","1,129.49","Electricity","190447027","11/04/2018","Schools","Oak Meadow Primary School","R2100"
"Wolverhampton City Council","http://opendatacommunities.org/id/metropolitan-district-council/wolverhampton","708251","Total Gas & Power Limited","156130848","693.63","Electricity","190447041","11/04/2018","Schools","Fallings Park Primary School","R2100"
"Wolverhampton City Council","http://opendatacommunities.org/id/metropolitan-district-council/wolverhampton","708251","Total Gas & Power Limited","157574390","245.54","Electricity","190447050","11/04/2018","Corporate Asset Management","Central Utilities to Recharge","R2100"
"Wolverhampton City Council","http://opendatacommunities.org/id/metropolitan-district-council/wolverhampton","708251","Total Gas & Power Limited","159939202","295.09","Electricity","190447045","11/04/2018","Corporate Asset Management","Central Utilities to Recharge","R2100"
"Wolverhampton City Council","http://opendatacommunities.org/id/metropolitan-district-council/wolverhampton","708251","Total Gas & Power Limited","160125388","919.17","Electricity","190447044","11/04/2018","Schools","West Park Primary School","R2100"
"Wolverhampton City Council","http://opendatacommunities.org/id/metropolitan-district-council/wolverhampton","708251","Total Gas & Power Limited","157632733","1,071.01","Electricity","190447048","11/04/2018","Schools","Bantock Primary School","R2100"
"Wolverhampton City Council","http://opendatacommunities.org/id/metropolitan-district-council/wolverhampton","708251","Total Gas & Power Limited","168003160","436.93","Gas","190447476","13/04/2018","Schools","St Andrews Church of England Primary School","R2101"
"Wolverhampton City Council","http://opendatacommunities.org/id/metropolitan-district-council/wolverhampton","708251","Total Gas & Power Limited","167753965","590.85","Gas","190447326","13/04/2018","Schools","St Michael�s Church of England Primary School","R2101"
"Wolverhampton City Council","http://opendatacommunities.org/id/metropolitan-district-council/wolverhampton","708251","Total Gas & Power Limited","167753888","1,204.39","Gas","190447318","13/04/2018","Corporate Asset Management","Central Utilities to Recharge","R2101"
"Wolverhampton City Council","http://opendatacommunities.org/id/metropolitan-district-council/wolverhampton","708251","Total Gas & Power Limited","167753701","906.45","Gas","190447300","13/04/2018","Corporate Asset Management","Central Utilities to Recharge","R2101"
"Wolverhampton City Council","http://opendatacommunities.org/id/metropolitan-district-council/wolverhampton","708251","Total Gas & Power Limited","167753668","635.40","Gas","190447296","13/04/2018","Schools","Bilston Church of England Primary School","R2101"
"Wolverhampton City Council","http://opendatacommunities.org/id/metropolitan-district-council/wolverhampton","708251","Total Gas & Power Limited","168002983","494.63","Gas","190447459","13/04/2018","Schools","Woodthorne Primary School","R2101"
"Wolverhampton City Council","http://opendatacommunities.org/id/metropolitan-district-council/wolverhampton","708251","Total Gas & Power Limited","167754284","461.56","Gas","190447357","13/04/2018","Corporate Asset Management","Central Utilities to Recharge","R2101"
"Wolverhampton City Council","http://opendatacommunities.org/id/metropolitan-district-council/wolverhampton","708251","Total Gas & Power Limited","168003137","119.06","Gas","190447473","13/04/2018","Schools","St Anthony�s Catholic Primary School","R2101"
"Wolverhampton City Council","http://opendatacommunities.org/id/metropolitan-district-council/wolverhampton","708251","Total Gas & Power Limited","168002851","100.02","Gas","190447447","13/04/2018","Schools","Penn Hall Special School","R2101"
"Wolverhampton City Council","http://opendatacommunities.org/id/metropolitan-district-council/wolverhampton","708251","Total Gas & Power Limited","168002873","69.82","Gas","190447449","13/04/2018","Schools","Penn Hall Special School","R2101"
"Wolverhampton City Council","http://opendatacommunities.org/id/metropolitan-district-council/wolverhampton","708251","Total Gas & Power Limited","168002895","92.12","Gas","190447451","13/04/2018","Schools","Castlecroft Primary School","R2101"
"Wolverhampton City Council","http://opendatacommunities.org/id/metropolitan-district-council/wolverhampton","708251","Total Gas & Power Limited","168002532","111.48","Gas","190447415","13/04/2018","Corporate Asset Management","Central Utilities to Recharge","R2101"
"Wolverhampton City Council","http://opendatacommunities.org/id/metropolitan-district-council/wolverhampton","708251","Total Gas & Power Limited","167754230","479.74","Gas","190447352","13/04/2018","Corporate Asset Management","Central Utilities to Recharge","R2101"
"Wolverhampton City Council","http://opendatacommunities.org/id/metropolitan-district-council/wolverhampton","708251","Total Gas & Power Limited","168002972","81.32","Gas","190447458","13/04/2018","Schools","Loxdale Primary School","R2101"
"Wolverhampton City Council","http://opendatacommunities.org/id/metropolitan-district-council/wolverhampton","708251","Total Gas & Power Limited","168003258","559.42","Gas","190447485","13/04/2018","Corporate Asset Management","Central Utilities to Recharge","R2101"
"Wolverhampton City Council","http://opendatacommunities.org/id/metropolitan-district-council/wolverhampton","708251","Total Gas & Power Limited","167754120","538.18","Gas","190447341","13/04/2018","Schools","Bilston Nursery","R2101"
"Wolverhampton City Council","http://opendatacommunities.org/id/metropolitan-district-council/wolverhampton","708251","Total Gas & Power Limited","167754196","109.12","Gas","190447348","13/04/2018","Corporate Asset Management","Central Utilities to Recharge","R2101"
"Wolverhampton City Council","http://opendatacommunities.org/id/metropolitan-district-council/wolverhampton","708251","Total Gas & Power Limited","167754306","122.24","Gas","190447359","13/04/2018","Corporate Asset Management","Central Utilities to Recharge","R2101"
"Wolverhampton City Council","http://opendatacommunities.org/id/metropolitan-district-council/wolverhampton","708251","Total Gas & Power Limited","168002136","289.58","Gas","190447375","13/04/2018","Corporate Asset Management","Central Utilities to Recharge","R2101"
"Wolverhampton City Council","http://opendatacommunities.org/id/metropolitan-district-council/wolverhampton","708251","Total Gas & Power Limited","168002444","73.07","Gas","190447406","13/04/2018","Corporate Asset Management","Central Utilities to Recharge","R2101"
"Wolverhampton City Council","http://opendatacommunities.org/id/metropolitan-district-council/wolverhampton","708251","Total Gas & Power Limited","168002400","95.83","Gas","190447402","13/04/2018","Schools","Phoenix Nursery","R2101"
"Wolverhampton City Council","http://opendatacommunities.org/id/metropolitan-district-council/wolverhampton","708251","Total Gas & Power Limited","168003357","696.48","Gas","190447495","13/04/2018","Corporate Asset Management","Central Utilities to Recharge","R2101"
"Wolverhampton City Council","http://opendatacommunities.org/id/metropolitan-district-council/wolverhampton","708251","Total Gas & Power Limited","167754108","279.00","Gas","190447339","13/04/2018","Corporate Asset Management","Central Utilities to Recharge","R2101"
"Wolverhampton City Council","http://opendatacommunities.org/id/metropolitan-district-council/wolverhampton","708251","Total Gas & Power Limited","167753899","884.52","Gas","190447319","13/04/2018","Corporate Asset Management","Central Utilities to Recharge","R2101"
"Wolverhampton City Council","http://opendatacommunities.org/id/metropolitan-district-council/wolverhampton","708251","Total Gas & Power Limited","168003159","39.49","Gas","190447475","13/04/2018","Schools","Warstones Primary School","R2101"
"Wolverhampton City Council","http://opendatacommunities.org/id/metropolitan-district-council/wolverhampton","708251","Total Gas & Power Limited","168002840","227.92","Gas","190447446","13/04/2018","Corporate Asset Management","Central Utilities to Recharge","R2101"
"Wolverhampton City Council","http://opendatacommunities.org/id/metropolitan-district-council/wolverhampton","708251","Total Gas & Power Limited","168002543","192.17","Gas","190447416","13/04/2018","Corporate Asset Management","Central Utilities to Recharge","R2101"
"Wolverhampton City Council","http://opendatacommunities.org/id/metropolitan-district-council/wolverhampton","708251","Total Gas & Power Limited","168002664","84.11","Gas","190447428","13/04/2018","Corporate Asset Management","Central Utilities to Recharge","R2101"
"Wolverhampton City Council","http://opendatacommunities.org/id/metropolitan-district-council/wolverhampton","708251","Total Gas & Power Limited","168002642","80.34","Gas","190447426","13/04/2018","Corporate Asset Management","Central Utilities to Recharge","R2101"
"Wolverhampton City Council","http://opendatacommunities.org/id/metropolitan-district-council/wolverhampton","708251","Total Gas & Power Limited","168002466","39.16","Gas","190447408","13/04/2018","Corporate Asset Management","Central Utilities to Recharge","R2101"
"Wolverhampton City Council","http://opendatacommunities.org/id/metropolitan-district-council/wolverhampton","708251","Total Gas & Power Limited","168003335","39.16","Gas","190447493","13/04/2018","Corporate Asset Management","Central Utilities to Recharge","R2101"
"Wolverhampton City Council","http://opendatacommunities.org/id/metropolitan-district-council/wolverhampton","708251","Total Gas & Power Limited","167754317","228.92","Gas","190447360","13/04/2018","Corporate Asset Management","Central Utilities to Recharge","R2101"
"Wolverhampton City Council","http://opendatacommunities.org/id/metropolitan-district-council/wolverhampton","708251","Total Gas & Power Limited","168003104","234.73","Gas","190447470","13/04/2018","Schools","St Patrick�s Catholic Primary School","R2101"
"Wolverhampton City Council","http://opendatacommunities.org/id/metropolitan-district-council/wolverhampton","708251","Total Gas & Power Limited","168002170","26.04","Gas","190447379","13/04/2018","Corporate Asset Management","Central Utilities to Recharge","R2101"
"Wolverhampton City Council","http://opendatacommunities.org/id/metropolitan-district-council/wolverhampton","708251","Total Gas & Power Limited","168002235","478.84","Gas","190447385","13/04/2018","Schools","Holy Trinity Catholic Primary School","R2101"
"Wolverhampton City Council","http://opendatacommunities.org/id/metropolitan-district-council/wolverhampton","708251","Total Gas & Power Limited","168002367","89.04","Gas","190447398","13/04/2018","Corporate Asset Management","Central Utilities to Recharge","R2101"
"Wolverhampton City Council","http://opendatacommunities.org/id/metropolitan-district-council/wolverhampton","708251","Total Gas & Power Limited","168002961","26.04","Gas","190447457","13/04/2018","Corporate Asset Management","Central Utilities to Recharge","R2101"
"Wolverhampton City Council","http://opendatacommunities.org/id/metropolitan-district-council/wolverhampton","708251","Total Gas & Power Limited","168003170","294.49","Gas","190447477","13/04/2018","Schools","St Andrews Church of England Primary School","R2101"
"Wolverhampton City Council","http://opendatacommunities.org/id/metropolitan-district-council/wolverhampton","708251","Total Gas & Power Limited","144080062","485.41","Electricity","190447032","11/04/2018","Schools","Woodthorne Primary School","R2100"
"Wolverhampton City Council","http://opendatacommunities.org/id/metropolitan-district-council/wolverhampton","708251","Total Gas & Power Limited","157538441","2,400.51","Electricity","190447030","11/04/2018","Corporate Asset Management","Central Utilities to Recharge","R2100"
"Wolverhampton City Council","http://opendatacommunities.org/id/metropolitan-district-council/wolverhampton","708251","Total Gas & Power Limited","159940819","680.78","Electricity","190447043","11/04/2018","Schools","Wood End Primary School","R2100"
"Wolverhampton City Council","http://opendatacommunities.org/id/metropolitan-district-council/wolverhampton","708251","Total Gas & Power Limited","157517464","572.03","Electricity","190447046","11/04/2018","Schools","Uplands Junior School","R2100"
"Wolverhampton City Council","http://opendatacommunities.org/id/metropolitan-district-council/wolverhampton","708251","Total Gas & Power Limited","157501646","250.09","Electricity","190447049","11/04/2018","Corporate Asset Management","Central Utilities to Recharge","R2100"
"Wolverhampton City Council","http://opendatacommunities.org/id/metropolitan-district-council/wolverhampton","708251","Total Gas & Power Limited","160069002","1,111.01","Electricity","190447047","11/04/2018","Corporate Asset Management","Central Utilities to Recharge","R2100"
"Wolverhampton City Council","http://opendatacommunities.org/id/metropolitan-district-council/wolverhampton","708251","Total Gas & Power Limited","168002390","67.38","Gas","190447401","13/04/2018","Schools","Merridale Primary School","R2101"
"Wolverhampton City Council","http://opendatacommunities.org/id/metropolitan-district-council/wolverhampton","708251","Total Gas & Power Limited","167753932","5,040.59","Gas","190447323","13/04/2018","Corporate Asset Management","Central Utilities to Recharge","R2101"
"Wolverhampton City Council","http://opendatacommunities.org/id/metropolitan-district-council/wolverhampton","708251","Total Gas & Power Limited","167753943","3,214.63","Gas","190447324","13/04/2018","Schools","Springdale Primary School","R2101"
"Wolverhampton City Council","http://opendatacommunities.org/id/metropolitan-district-council/wolverhampton","708251","Total Gas & Power Limited","167753712","1,589.52","Gas","190447301","13/04/2018","Schools","Penn Hall Special School","R2101"
"Wolverhampton City Council","http://opendatacommunities.org/id/metropolitan-district-council/wolverhampton","708251","Total Gas & Power Limited","167753910","2,405.94","Gas","190447321","13/04/2018","Corporate Asset Management","Central Utilities to Recharge","R2101"
"Wolverhampton City Council","http://opendatacommunities.org/id/metropolitan-district-council/wolverhampton","708251","Total Gas & Power Limited","168002653","6,880.21","Gas","190447427","13/04/2018","Corporate Asset Management","Central Utilities to Recharge","R2101"
"Wolverhampton City Council","http://opendatacommunities.org/id/metropolitan-district-council/wolverhampton","708251","Total Gas & Power Limited","168003302","190.74","Gas","190447490","13/04/2018","Corporate Asset Management","Central Utilities to Recharge","R2101"
"Wolverhampton City Council","http://opendatacommunities.org/id/metropolitan-district-council/wolverhampton","708251","Total Gas & Power Limited","167753690","171.51","Gas","190447299","13/04/2018","Corporate Asset Management","Central Utilities to Recharge","R2101"
"Wolverhampton City Council","http://opendatacommunities.org/id/metropolitan-district-council/wolverhampton","708251","Total Gas & Power Limited","168002598","113.72","Gas","190447421","13/04/2018","Schools","Hill Avenue Primary School","R2101"
"Wolverhampton City Council","http://opendatacommunities.org/id/metropolitan-district-council/wolverhampton","708251","Total Gas & Power Limited","167754416","1,202.27","Gas","190447370","13/04/2018","Schools","Rakegate Primary School","R2101"
"Wolverhampton City Council","http://opendatacommunities.org/id/metropolitan-district-council/wolverhampton","708251","Total Gas & Power Limited","168002488","160.25","Gas","190447410","13/04/2018","Schools","Ashmore Park Nursery","R2101"
"Wolverhampton City Council","http://opendatacommunities.org/id/metropolitan-district-council/wolverhampton","708251","Total Gas & Power Limited","167754020","351.29","Gas","190447332","13/04/2018","Corporate Asset Management","Central Utilities to Recharge","R2101"
"Wolverhampton City Council","http://opendatacommunities.org/id/metropolitan-district-council/wolverhampton","708251","Total Gas & Power Limited","168003016","132.45","Gas","190447462","13/04/2018","Corporate Asset Management","Central Utilities to Recharge","R2101"
"Wolverhampton City Council","http://opendatacommunities.org/id/metropolitan-district-council/wolverhampton","708251","Total Gas & Power Limited","167753866","2,604.40","Gas","190447316","13/04/2018","Schools","Stowheath Primary School","R2101"
"Wolverhampton City Council","http://opendatacommunities.org/id/metropolitan-district-council/wolverhampton","708251","Total Gas & Power Limited","168003093","52.12","Gas","190447469","13/04/2018","Schools","St Michael�s Church of England Primary School","R2101"
"Wolverhampton City Council","http://opendatacommunities.org/id/metropolitan-district-council/wolverhampton","708251","Total Gas & Power Limited","166123413C","-471.81","Gas","190450862","25/04/2018","Schools","Penn Hall Special School","R2101"
"Wolverhampton City Council","http://opendatacommunities.org/id/metropolitan-district-council/wolverhampton","708251","Total Gas & Power Limited","168003060","319.78","Gas","190447467","13/04/2018","Corporate Asset Management","Central Utilities to Recharge","R2101"
"Wolverhampton City Council","http://opendatacommunities.org/id/metropolitan-district-council/wolverhampton","708251","Total Gas & Power Limited","168002610","26.04","Gas","190447423","13/04/2018","Corporate Asset Management","Central Utilities to Recharge","R2101"
"Wolverhampton City Council","http://opendatacommunities.org/id/metropolitan-district-council/wolverhampton","708251","Total Gas & Power Limited","168002103","54.09","Gas","190447372","13/04/2018","Corporate Asset Management","Central Utilities to Recharge","R2101"
"Wolverhampton City Council","http://opendatacommunities.org/id/metropolitan-district-council/wolverhampton","708251","Total Gas & Power Limited","168003236","328.99","Gas","190447483","13/04/2018","Corporate Asset Management","Central Utilities to Recharge","R2101"
"Wolverhampton City Council","http://opendatacommunities.org/id/metropolitan-district-council/wolverhampton","708251","Total Gas & Power Limited","162627382C","-394.88","Gas","190441971","04/04/2018","Schools","Villiers Primary School","R2101"
"Wolverhampton City Council","http://opendatacommunities.org/id/metropolitan-district-council/wolverhampton","708251","Total Gas & Power Limited","161798224","1,348.07","Electricity","190441981","04/04/2018","Schools","Oak Meadow Primary School","R2100"
"Wolverhampton City Council","http://opendatacommunities.org/id/metropolitan-district-council/wolverhampton","708251","Total Gas & Power Limited","166123116a","280.32","Gas","190442087","04/04/2018","Schools","St Andrews Church of England Primary School","R2101"
"Wolverhampton City Council","http://opendatacommunities.org/id/metropolitan-district-council/wolverhampton","708251","Total Gas & Power Limited","149155781a","-34.52","Gas","190442004","04/04/2018","Facilities Management","Management of Vacant Properties","R2101"
"Wolverhampton City Council","http://opendatacommunities.org/id/metropolitan-district-council/wolverhampton","708251","Total Gas & Power Limited","152496921a","-28.94","Gas","190442006","04/04/2018","Facilities Management","Management of Vacant Properties","R2101"
"Wolverhampton City Council","http://opendatacommunities.org/id/metropolitan-district-council/wolverhampton","708251","Total Gas & Power Limited","166123083a","52.14","Gas","190442084","04/04/2018","Schools","Claregate Primary School","R2101"
"Wolverhampton City Council","http://opendatacommunities.org/id/metropolitan-district-council/wolverhampton","708251","Total Gas & Power Limited","166070481a","630.34","Gas","190442019","04/04/2018","Corporate Asset Management","Central Utilities to Recharge","R2101"
"Wolverhampton City Council","http://opendatacommunities.org/id/metropolitan-district-council/wolverhampton","708251","Total Gas & Power Limited","166123369a","53.96","Gas","190442109","04/04/2018","Schools","Merridale Primary School","R2101"
"Wolverhampton City Council","http://opendatacommunities.org/id/metropolitan-district-council/wolverhampton","708251","Total Gas & Power Limited","166123281a","116.23","Gas","190442102","04/04/2018","Corporate Asset Management","Central Utilities to Recharge","R2101"
"Wolverhampton City Council","http://opendatacommunities.org/id/metropolitan-district-council/wolverhampton","708251","Total Gas & Power Limited","166123292a","64.25","Gas","190442103","04/04/2018","Schools","Woodthorne Primary School","R2101"
"Wolverhampton City Council","http://opendatacommunities.org/id/metropolitan-district-council/wolverhampton","708251","Total Gas & Power Limited","166070536a","553.84","Gas","190442024","04/04/2018","Schools","Eastfield Nursery","R2101"
"Wolverhampton City Council","http://opendatacommunities.org/id/metropolitan-district-council/wolverhampton","708251","Total Gas & Power Limited","166070448a","93.13","Gas","190442017","04/04/2018","Schools","St Luke�s Church of England Aided Primary School","R2101"
"Wolverhampton City Council","http://opendatacommunities.org/id/metropolitan-district-council/wolverhampton","708251","Total Gas & Power Limited","166070570a","92.66","Gas","190442028","04/04/2018","Schools","Villiers Primary School","R2101"
"Wolverhampton City Council","http://opendatacommunities.org/id/metropolitan-district-council/wolverhampton","708251","Total Gas & Power Limited","166123127a","402.71","Gas","190442088","04/04/2018","Schools","St Andrews Church of England Primary School","R2101"
"Wolverhampton City Council","http://opendatacommunities.org/id/metropolitan-district-council/wolverhampton","708251","Total Gas & Power Limited","166123380a","23.52","Gas","190442111","04/04/2018","Corporate Asset Management","Central Utilities to Recharge","R2101"
"Wolverhampton City Council","http://opendatacommunities.org/id/metropolitan-district-council/wolverhampton","708251","Total Gas & Power Limited","166123182a","150.41","Gas","190442094","04/04/2018","Schools","St Patrick�s Catholic Primary School","R2101"
"Wolverhampton City Council","http://opendatacommunities.org/id/metropolitan-district-council/wolverhampton","708251","Total Gas & Power Limited","166123160a","694.65","Gas","190442092","04/04/2018","Schools","Fallings Park Primary School","R2101"
"Wolverhampton City Council","http://opendatacommunities.org/id/metropolitan-district-council/wolverhampton","708251","Total Gas & Power Limited","166123611a","550.55","Gas","190442134","04/04/2018","Corporate Asset Management","Central Utilities to Recharge","R2101"
"Wolverhampton City Council","http://opendatacommunities.org/id/metropolitan-district-council/wolverhampton","708251","Total Gas & Power Limited","166078687a","1,284.26","Gas","190442051","04/04/2018","Schools","Trinity Church of England Primary School","R2101"
"Wolverhampton City Council","http://opendatacommunities.org/id/metropolitan-district-council/wolverhampton","708251","Total Gas & Power Limited","164575890Ca","-42.34","Gas","190442013","04/04/2018","Facilities Management","Management of Vacant Properties","R2101"
"Wolverhampton City Council","http://opendatacommunities.org/id/metropolitan-district-council/wolverhampton","708251","Total Gas & Power Limited","166123578a","75.00","Gas","190442130","04/04/2018","Facilities Management","Management of Vacant Properties","R2101"
"Wolverhampton City Council","http://opendatacommunities.org/id/metropolitan-district-council/wolverhampton","708251","Total Gas & Power Limited","166123765a","97.99","Gas","190442149","04/04/2018","Corporate Asset Management","Central Utilities to Recharge","R2101"
"Wolverhampton City Council","http://opendatacommunities.org/id/metropolitan-district-council/wolverhampton","708251","Total Gas & Power Limited","166078885a","341.42","Gas","190442070","04/04/2018","Corporate Asset Management","Central Utilities to Recharge","R2101"
"Wolverhampton City Council","http://opendatacommunities.org/id/metropolitan-district-council/wolverhampton","708251","Total Gas & Power Limited","166123633a","80.92","Gas","190442136","04/04/2018","Corporate Asset Management","Central Utilities to Recharge","R2101"
"Wolverhampton City Council","http://opendatacommunities.org/id/metropolitan-district-council/wolverhampton","708251","Total Gas & Power Limited","166123809a","47.27","Gas","190442153","04/04/2018","Corporate Asset Management","Central Utilities to Recharge","R2101"
"Wolverhampton City Council","http://opendatacommunities.org/id/metropolitan-district-council/wolverhampton","708251","Total Gas & Power Limited","166123644a","6,854.06","Gas","190442137","04/04/2018","Corporate Asset Management","Central Utilities to Recharge","R2101"
"Wolverhampton City Council","http://opendatacommunities.org/id/metropolitan-district-council/wolverhampton","708251","Total Gas & Power Limited","166078874a","311.31","Gas","190442069","04/04/2018","Schools","St Thomas� Church of England Primary School","R2101"
"Wolverhampton City Council","http://opendatacommunities.org/id/metropolitan-district-council/wolverhampton","708251","Total Gas & Power Limited","166078764a","983.82","Gas","190442059","04/04/2018","Schools","Castlecroft Primary School","R2101"
"Wolverhampton City Council","http://opendatacommunities.org/id/metropolitan-district-council/wolverhampton","708251","Total Gas & Power Limited","166123688a","23.52","Gas","190442141","04/04/2018","Corporate Asset Management","Central Utilities to Recharge","R2101"
"Wolverhampton City Council","http://opendatacommunities.org/id/metropolitan-district-council/wolverhampton","708251","Total Gas & Power Limited","166123754a","190.28","Gas","190442148","04/04/2018","Corporate Asset Management","Central Utilities to Recharge","R2101"
"Wolverhampton City Council","http://opendatacommunities.org/id/metropolitan-district-council/wolverhampton","708251","Total Gas & Power Limited","166123930a","78.46","Gas","190442166","04/04/2018","Corporate Asset Management","Central Utilities to Recharge","R2101"
"Wolverhampton City Council","http://opendatacommunities.org/id/metropolitan-district-council/wolverhampton","708251","Total Gas & Power Limited","166123920a","69.84","Gas","190442165","04/04/2018","Corporate Asset Management","Central Utilities to Recharge","R2101"
"Wolverhampton City Council","http://opendatacommunities.org/id/metropolitan-district-council/wolverhampton","708251","Total Gas & Power Limited","166078973a","810.40","Gas","190442079","04/04/2018","Corporate Asset Management","Central Utilities to Recharge","R2101"
"Wolverhampton City Council","http://opendatacommunities.org/id/metropolitan-district-council/wolverhampton","708251","Total Gas & Power Limited","166078929a","618.95","Gas","190442074","04/04/2018","Schools","St Luke�s Church of England Aided Primary School","R2101"
"Wolverhampton City Council","http://opendatacommunities.org/id/metropolitan-district-council/wolverhampton","708251","Total Gas & Power Limited","166123040a","35.37","Gas","190442080","04/04/2018","Corporate Asset Management","Central Utilities to Recharge","R2101"
"Wolverhampton City Council","http://opendatacommunities.org/id/metropolitan-district-council/wolverhampton","708251","Total Gas & Power Limited","166124194a","526.31","Gas","190442192","04/04/2018","Corporate Asset Management","Central Utilities to Recharge","R2101"
"Wolverhampton City Council","http://opendatacommunities.org/id/metropolitan-district-council/wolverhampton","708251","Total Gas & Power Limited","166124007a","35.37","Gas","190442173","04/04/2018","Corporate Asset Management","Central Utilities to Recharge","R2101"
"Wolverhampton City Council","http://opendatacommunities.org/id/metropolitan-district-council/wolverhampton","708251","Total Gas & Power Limited","166123974a","50.01","Gas","190442170","04/04/2018","Corporate Asset Management","Central Utilities to Recharge","R2101"
"Wolverhampton City Council","http://opendatacommunities.org/id/metropolitan-district-council/wolverhampton","708251","Total Gas & Power Limited","166124216a","312.96","Gas","190442194","04/04/2018","Corporate Asset Management","Central Utilities to Recharge","R2101"
"Wolverhampton City Council","http://opendatacommunities.org/id/metropolitan-district-council/wolverhampton","708251","Total Gas & Power Limited","166124227a","871.11","Gas","190442195","04/04/2018","Schools","Rakegate Primary School","R2101"
"Wolverhampton City Council","http://opendatacommunities.org/id/metropolitan-district-council/wolverhampton","708251","Total Gas & Power Limited","166124040a","199.73","Gas","190442177","04/04/2018","Corporate Asset Management","Central Utilities to Recharge","R2101"
"Wolverhampton City Council","http://opendatacommunities.org/id/metropolitan-district-council/wolverhampton","708251","Total Gas & Power Limited","166123996a","89.65","Gas","190442172","04/04/2018","Schools","Trinity Church of England Primary School","R2101"
"Wolverhampton City Council","http://opendatacommunities.org/id/metropolitan-district-council/wolverhampton","708251","Total Gas & Power Limited","166123050A","302.78","Gas","190442081","04/04/2018","Corporate Asset Management","Central Utilities to Recharge","R2101"
"Wolverhampton City Council","http://opendatacommunities.org/id/metropolitan-district-council/wolverhampton","708251","Total Gas & Power Limited","166124360a","403.00","Gas","190442209","04/04/2018","Housing Revenue Account","Hostels / Outreach","R2101"
"Wolverhampton City Council","http://opendatacommunities.org/id/metropolitan-district-council/wolverhampton","708251","Total Gas & Power Limited","166124250a","1,156.08","Gas","190442198","04/04/2018","Corporate Asset Management","Central Utilities to Recharge","R2101"
"Wolverhampton City Council","http://opendatacommunities.org/id/metropolitan-district-council/wolverhampton","708251","Total Gas & Power Limited","166124260a","442.24","Gas","190442199","04/04/2018","Corporate Asset Management","Central Utilities to Recharge","R2101"
"Wolverhampton City Council","http://opendatacommunities.org/id/metropolitan-district-council/wolverhampton","708251","Total Gas & Power Limited","166124403a","561.10","Gas","190442213","04/04/2018","Corporate Asset Management","Central Utilities to Recharge","R2101"
"Wolverhampton City Council","http://opendatacommunities.org/id/metropolitan-district-council/wolverhampton","708251","Total Gas & Power Limited","166124414a","28.34","Gas","190442214","04/04/2018","Facilities Management","Management of Vacant Properties","R2101"
"Wolverhampton City Council","http://opendatacommunities.org/id/metropolitan-district-council/wolverhampton","708251","Total Gas & Power Limited","166124502a","530.59","Gas","190442223","04/04/2018","Schools","Bilston Nursery","R2101"
"Wolverhampton City Council","http://opendatacommunities.org/id/metropolitan-district-council/wolverhampton","708251","Total Gas & Power Limited","166124557a","585.28","Gas","190442227","04/04/2018","Corporate Asset Management","Central Utilities to Recharge","R2101"
"Wolverhampton City Council","http://opendatacommunities.org/id/metropolitan-district-council/wolverhampton","708251","Total Gas & Power Limited","166124579a","23.52","Gas","190442229","04/04/2018","Corporate Asset Management","Central Utilities to Recharge","R2101"
"Wolverhampton City Council","http://opendatacommunities.org/id/metropolitan-district-council/wolverhampton","708251","Total Gas & Power Limited","166124535a","981.75","Gas","190442226","04/04/2018","Schools","Claregate Primary School","R2101"
"Wolverhampton City Council","http://opendatacommunities.org/id/metropolitan-district-council/wolverhampton","708251","Total Gas & Power Limited","166124524a","256.82","Gas","190442225","04/04/2018","Corporate Asset Management","Central Utilities to Recharge","R2101"
"Wolverhampton City Council","http://opendatacommunities.org/id/metropolitan-district-council/wolverhampton","708251","Total Gas & Power Limited","166078533a","538.20","Gas","190442036","04/04/2018","Schools","St Anthony�s Catholic Primary School","R2101"
"Wolverhampton City Council","http://opendatacommunities.org/id/metropolitan-district-council/wolverhampton","708251","Total Gas & Power Limited","166123413a","471.81","Gas","190442114","04/04/2018","Schools","Penn Hall Special School","R2101"
"Wolverhampton City Council","http://opendatacommunities.org/id/metropolitan-district-council/wolverhampton","708251","Total Gas & Power Limited","166123468a","175.75","Gas","190442119","04/04/2018","Corporate Asset Management","Central Utilities to Recharge","R2101"
"Wolverhampton City Council","http://opendatacommunities.org/id/metropolitan-district-council/wolverhampton","708251","Total Gas & Power Limited","166123501a","213.51","Gas","190442123","04/04/2018","Corporate Asset Management","Central Utilities to Recharge","R2101"
"Wolverhampton City Council","http://opendatacommunities.org/id/metropolitan-district-council/wolverhampton","708251","Total Gas & Power Limited","166123523a","156.58","Gas","190442125","04/04/2018","Schools","Wilkinson Primary School","R2101"
"Wolverhampton City Council","http://opendatacommunities.org/id/metropolitan-district-council/wolverhampton","708251","Total Gas & Power Limited","166078599a","3,883.36","Gas","190442042","04/04/2018","Corporate Asset Management","Central Utilities to Recharge","R2101"
"Wolverhampton City Council","http://opendatacommunities.org/id/metropolitan-district-council/wolverhampton","708251","Total Gas & Power Limited","166078600a","3,178.13","Gas","190442043","04/04/2018","Corporate Asset Management","Central Utilities to Recharge","R2101"
"Wolverhampton City Council","http://opendatacommunities.org/id/metropolitan-district-council/wolverhampton","708252","Total Hygiene Limited","OP/I137860","195.00","Adaptations","130211077","20/04/2018","Independent Living Service","Independent Living Service","R4411"
"Wolverhampton City Council","http://opendatacommunities.org/id/metropolitan-district-council/wolverhampton","708263","Tough Furniture Limited","13666","2,375.00","Furniture","130212839","20/04/2018","Learning Disabilities Care Purchasing","LD Care Purchasing (Spot Placements)","R4004"
"Wolverhampton City Council","http://opendatacommunities.org/id/metropolitan-district-council/wolverhampton","708280","Trade UK (Was Screwfix Direct Limited)","0848645405","549.99","Cleaning Supplies and Materials","130212840","13/04/2018","Independent Living Service","Independent Living Service","R2705"
"Wolverhampton City Council","http://opendatacommunities.org/id/metropolitan-district-council/wolverhampton","708285","Traffix","24124","1,528.00","TPP - Traffic Management","130213574","25/04/2018","Highways Maintenance","Highway & Land Drainage","R5050"
"Wolverhampton City Council","http://opendatacommunities.org/id/metropolitan-district-council/wolverhampton","708293","Transport Door Solutions Limited","45977","25.00","Equipment - Purchase","190451787","27/04/2018","Fleet Services","Fleet Management","R4000"
"Wolverhampton City Council","http://opendatacommunities.org/id/metropolitan-district-council/wolverhampton","708293","Transport Door Solutions Limited","46010","376.65","Equipment - Purchase","190448766","18/04/2018","Fleet Services","Fleet Management","R4000"
"Wolverhampton City Council","http://opendatacommunities.org/id/metropolitan-district-council/wolverhampton","708293","Transport Door Solutions Limited","46010","92.17","Equipment - Purchase","190448766","18/04/2018","Fleet Services","Fleet Management","R4000"
"Wolverhampton City Council","http://opendatacommunities.org/id/metropolitan-district-council/wolverhampton","708298","Travel Class Limited","IN-026306","1,250.00","Education trips, Holidays, Outings & Activities","130210336","11/04/2018","Headstart","Headstart - Young People Engagement","R4970"
"Wolverhampton City Council","http://opendatacommunities.org/id/metropolitan-district-council/wolverhampton","708306","Treka Bus Limited","UMT0008410","52.08","Equipment - Purchase","190442321","04/04/2018","Fleet Services","Fleet Management","R4000"
"Wolverhampton City Council","http://opendatacommunities.org/id/metropolitan-district-council/wolverhampton","708306","Treka Bus Limited","UMT0008549","47.25","Equipment - Purchase","190442322","04/04/2018","Fleet Services","Fleet Management","R4000"
"Wolverhampton City Council","http://opendatacommunities.org/id/metropolitan-district-council/wolverhampton","708339","Trowers & Hamlins Llp","2695162","1,918.55","Services - Professional Fees","130213575","25/04/2018","School Planning & Resources","PFI Scheme - Heath Park & St Matthias","R4400"
"Wolverhampton City Council","http://opendatacommunities.org/id/metropolitan-district-council/wolverhampton","708339","Trowers & Hamlins Llp","2657157","1,132.55","Services - Professional Fees","130213394","18/04/2018","School Planning & Resources","PFI Scheme - Heath Park & St Matthias","R4400"
"Wolverhampton City Council","http://opendatacommunities.org/id/metropolitan-district-council/wolverhampton","708356","Tudor Environmental","215695","805.00","Equipment - Purchase","130213576","25/04/2018","Bereavement Services","Cemeteries","R4000"
"Wolverhampton City Council","http://opendatacommunities.org/id/metropolitan-district-council/wolverhampton","708356","Tudor Environmental","215197","73.80","Equipment - Purchase","130212981","18/04/2018","Leisure Services","Aldersley Leisure Village","R4000"
"Wolverhampton City Council","http://opendatacommunities.org/id/metropolitan-district-council/wolverhampton","708356","Tudor Environmental","215197","2.70","Equipment - Purchase","130212981","18/04/2018","Leisure Services","Aldersley Leisure Village","R4000"
"Wolverhampton City Council","http://opendatacommunities.org/id/metropolitan-district-council/wolverhampton","708356","Tudor Environmental","215197","138.56","Equipment - Purchase","130212981","18/04/2018","Leisure Services","Aldersley Leisure Village","R4000"
"Wolverhampton City Council","http://opendatacommunities.org/id/metropolitan-district-council/wolverhampton","708356","Tudor Environmental","215197","42.00","Equipment - Purchase","130212981","18/04/2018","Leisure Services","Aldersley Leisure Village","R4000"
"Wolverhampton City Council","http://opendatacommunities.org/id/metropolitan-district-council/wolverhampton","708356","Tudor Environmental","216237","1,557.43","Equipment - Purchase","130214170","27/04/2018","Bereavement Services","Cemeteries","R4000"
"Wolverhampton City Council","http://opendatacommunities.org/id/metropolitan-district-council/wolverhampton","708357","Tudor Medical Centre","M2017Q4.15SHIURFQ","100.00","TPP - Public Health Contracts","190451287","25/04/2018","Contracts","Sexual Health","R5060"
"Wolverhampton City Council","http://opendatacommunities.org/id/metropolitan-district-council/wolverhampton","708357","Tudor Medical Centre","M2017Q415SHCIFRQ","360.00","TPP - Public Health Contracts","190451283","25/04/2018","Contracts","Sexual Health","R5060"
"Wolverhampton City Council","http://opendatacommunities.org/id/metropolitan-district-council/wolverhampton","708357","Tudor Medical Centre","M2017Q415SHIUDFQ","700.00","TPP - Public Health Contracts","190451285","25/04/2018","Contracts","Sexual Health","R5060"
"Wolverhampton City Council","http://opendatacommunities.org/id/metropolitan-district-council/wolverhampton","708357","Tudor Medical Centre","M2017Q415HL1IHCQ","16.20","TPP - Public Health Contracts","190451288","25/04/2018","Contracts","Healthy Lifestyles","R5060"
"Wolverhampton City Council","http://opendatacommunities.org/id/metropolitan-district-council/wolverhampton","708357","Tudor Medical Centre","M2017Q415HL1IPRQ","131.00","TPP - Public Health Contracts","190451289","25/04/2018","Contracts","Healthy Lifestyles","R5060"
